Workbook

Sheet 综合成绩、体检人员公布
A1: 榕江县2022年“特岗计划” 教师招聘笔试、面试考生综合成绩及进入体检人员名单
A2: 序号 | B2: 姓名 | C2: 报考县 | D2: 报考学段 | E2: 报考学科 | F2: 考场号 | G2: 座位号 | H2: 笔试 准考证号 | I2: 笔试成绩 （四舍五入后保留2位小数） | J2: 笔试分组排名 | K2: 候考室号 | L2: 考场号 | M2: 面试场次 | N2: 面试准考证号 | O2: 面试成绩 （四舍五入后保留2位小数） | P2: 面试分组排名 | Q2: 笔试成绩折算（50%） | R2: 面试成绩折算（50%） | S2: 综合分 （笔试50%+面试50%） | T2: 综合分组排名 | U2: 是否入围 体检
A3: =IF(B3<>"",SUBTOTAL(3,$B$3:B3)+0,"") -> 1 | B3: 张贵源 | C3: 榕江县 | D3: 幼儿园 | E3: 学前教育 | F3: 007 | G3: 27 | H3: 05011300727 | I3: 62 | J3: 1 | K3: 第42候考室 | L3: 第42考场 | M3: 下午场 | N3: 20501164231 | O3: 83 | P3: 1 | Q3: =ROUND(I3*0.5,2) -> 31 | R3: =ROUND(O3*0.5,2) -> 41.5 | S3: =Q3+R3 -> 72.5 | T3: =IF(S3=0,"",SUMPRODUCT(($AB$3:$AB$196=AA3)*($T$3:$T$196>S3))+1) -> 1 | U3: 入围体检
A4: =IF(B4<>"",SUBTOTAL(3,$B$3:B4)+0,"") -> 2 | B4: 吴书菲 | C4: 榕江县 | D4: 幼儿园 | E4: 学前教育 | F4: 010 | G4: 01 | H4: 05011301001 | I4: 60 | J4: 2 | K4: 第42候考室 | L4: 第42考场 | M4: 下午场 | N4: 20501164233 | O4: 78.33 | P4: 4 | Q4: 30 | R4: 39.17 | S4: 69.17 | T4: =IF(S4=0,"",SUMPRODUCT(($AB$3:$AB$196=AA4)*($T$3:$T$196>S4))+1) -> 2 | U4: 入围体检
A5: =IF(B5<>"",SUBTOTAL(3,$B$3:B5)+0,"") -> 3 | B5: 吴丹 | C5: 榕江县 | D5: 幼儿园 | E5: 学前教育 | F5: 010 | G5: 02 | H5: 05011301002 | I5: 58.5 | J5: 4 | K5: 第42候考室 | L5: 第42考场 | M5: 下午场 | N5: 20501164234 | O5: 79.67 | P5: 2 | Q5: 29.25 | R5: 39.84 | S5: 69.09 | T5: =IF(S5=0,"",SUMPRODUCT(($AB$3:$AB$196=AA5)*($T$3:$T$196>S5))+1) -> 3 | U5: 入围体检
A6: =IF(B6<>"",SUBTOTAL(3,$B$3:B6)+0,"") -> 4 | B6: 杨青青 | C6: 榕江县 | D6: 幼儿园 | E6: 学前教育 | F6: 009 | G6: 03 | H6: 05011300903 | I6: 60 | J6: 2 | K6: 第42候考室 | L6: 第42考场 | M6: 下午场 | N6: 20501164232 | O6: 77.67 | P6: 5 | Q6: 30 | R6: 38.84 | S6: 68.84 | T6: =IF(S6=0,"",SUMPRODUCT(($AB$3:$AB$196=AA6)*($T$3:$T$196>S6))+1) -> 4 | U6: 入围体检
A7: =IF(B7<>"",SUBTOTAL(3,$B$3:B7)+0,"") -> 5 | B7: 王莹 | C7: 榕江县 | D7: 幼儿园 | E7: 学前教育 | F7: 015 | G7: 29 | H7: 05011301529 | I7: 58.5 | J7: 4 | K7: 第42候考室 | L7: 第42考场 | M7: 下午场 | N7: 20501164235 | O7: 76.67 | P7: 8 | Q7: 29.25 | R7: 38.34 | S7: 67.59 | T7: =IF(S7=0,"",SUMPRODUCT(($AB$3:$AB$196=AA7)*($T$3:$T$196>S7))+1) -> 5 | U7: 入围体检
A8: =IF(B8<>"",SUBTOTAL(3,$B$3:B8)+0,"") -> 6 | B8: 吴秀花 | C8: 榕江县 | D8: 幼儿园 | E8: 学前教育 | F8: 017 | G8: 21 | H8: 05011301721 | I8: 57 | J8: 6 | K8: 第42候考室 | L8: 第42考场 | M8: 下午场 | N8: 20501164236 | O8: 76.67 | P8: 8 | Q8: 28.5 | R8: 38.34 | S8: 66.84 | T8: =IF(S8=0,"",SUMPRODUCT(($AB$3:$AB$196=AA8)*($T$3:$T$196>S8))+1) -> 6 | U8: 入围体检
A9: =IF(B9<>"",SUBTOTAL(3,$B$3:B9)+0,"") -> 7 | B9: 黄彩蝶 | C9: 榕江县 | D9: 幼儿园 | E9: 学前教育 | F9: 009 | G9: 29 | H9: 05011300929 | I9: 54 | J9: 9 | K9: 第42候考室 | L9: 第42考场 | M9: 下午场 | N9: 20501164239 | O9: 78.67 | P9: 3 | Q9: 27 | R9: 39.34 | S9: 66.34 | T9: =IF(S9=0,"",SUMPRODUCT(($AB$3:$AB$196=AA9)*($T$3:$T$196>S9))+1) -> 7 | U9: 入围体检
A10: =IF(B10<>"",SUBTOTAL(3,$B$3:B10)+0,"") -> 8 | B10: 吴苇芗 | C10: 榕江县 | D10: 幼儿园 | E10: 学前教育 | F10: 008 | G10: 21 | H10: 05011300821 | I10: 53 | J10: 11 | K10: 第42候考室 | L10: 第42考场 | M10: 下午场 | N10: 20501164241 | O10: 77.67 | P10: 5 | Q10: 26.5 | R10: 38.84 | S10: 65.34 | T10: =IF(S10=0,"",SUMPRODUCT(($AB$3:$AB$196=AA10)*($T$3:$T$196>S10))+1) -> 8
A11: =IF(B11<>"",SUBTOTAL(3,$B$3:B11)+0,"") -> 9 | B11: 杨鸿玉 | C11: 榕江县 | D11: 幼儿园 | E11: 学前教育 | F11: 011 | G11: 12 | H11: 05011301112 | I11: 52.8 | J11: 12 | K11: 第42候考室 | L11: 第42考场 | M11: 下午场 | N11: 20501164242 | O11: 77.33 | P11: 7 | Q11: 26.4 | R11: 38.67 | S11: 65.07 | T11: =IF(S11=0,"",SUMPRODUCT(($AB$3:$AB$196=AA11)*($T$3:$T$196>S11))+1) -> 9
A12: =IF(B12<>"",SUBTOTAL(3,$B$3:B12)+0,"") -> 10 | B12: 姚元颖 | C12: 榕江县 | D12: 幼儿园 | E12: 学前教育 | F12: 010 | G12: 05 | H12: 05011301005 | I12: 52 | J12: 13 | K12: 第42候考室 | L12: 第42考场 | M12: 下午场 | N12: 20501164243 | O12: 75.67 | P12: 12 | Q12: 26 | R12: 37.84 | S12: 63.84 | T12: =IF(S12=0,"",SUMPRODUCT(($AB$3:$AB$196=AA12)*($T$3:$T$196>S12))+1) -> 10
A13: =IF(B13<>"",SUBTOTAL(3,$B$3:B13)+0,"") -> 11 | B13: 罗文霞 | C13: 榕江县 | D13: 幼儿园 | E13: 学前教育 | F13: 010 | G13: 19 | H13: 05011301019 | I13: 56 | J13: 7 | K13: 第42候考室 | L13: 第42考场 | M13: 下午场 | N13: 20501164237 | O13: 71.33 | P13: 17 | Q13: 28 | R13: 35.67 | S13: 63.67 | T13: =IF(S13=0,"",SUMPRODUCT(($AB$3:$AB$196=AA13)*($T$3:$T$196>S13))+1) -> 11
A14: =IF(B14<>"",SUBTOTAL(3,$B$3:B14)+0,"") -> 12 | B14: 梁小随 | C14: 榕江县 | D14: 幼儿园 | E14: 学前教育 | F14: 009 | G14: 08 | H14: 05011300908 | I14: 51 | J14: 18 | K14: 第42候考室 | L14: 第42考场 | M14: 下午场 | N14: 20501164249 | O14: 76.33 | P14: 10 | Q14: 25.5 | R14: 38.17 | S14: 63.67 | T14: =IF(S14=0,"",SUMPRODUCT(($AB$3:$AB$196=AA14)*($T$3:$T$196>S14))+1) -> 11
A15: =IF(B15<>"",SUBTOTAL(3,$B$3:B15)+0,"") -> 13 | B15: 莫美秀 | C15: 榕江县 | D15: 幼儿园 | E15: 学前教育 | F15: 008 | G15: 28 | H15: 05011300828 | I15: 50.5 | J15: 20 | K15: 第42候考室 | L15: 第42考场 | M15: 下午场 | N15: 20501164250 | O15: 76.33 | P15: 10 | Q15: 25.25 | R15: 38.17 | S15: 63.42 | T15: =IF(S15=0,"",SUMPRODUCT(($AB$3:$AB$196=AA15)*($T$3:$T$196>S15))+1) -> 13
A16: =IF(B16<>"",SUBTOTAL(3,$B$3:B16)+0,"") -> 14 | B16: 李仁春 | C16: 榕江县 | D16: 幼儿园 | E16: 学前教育 | F16: 011 | G16: 16 | H16: 05011301116 | I16: 53.3 | J16: 10 | K16: 第42候考室 | L16: 第42考场 | M16: 下午场 | N16: 20501164240 | O16: 73.33 | P16: 15 | Q16: 26.65 | R16: 36.67 | S16: 63.32 | T16: =IF(S16=0,"",SUMPRODUCT(($AB$3:$AB$196=AA16)*($T$3:$T$196>S16))+1) -> 14
A17: =IF(B17<>"",SUBTOTAL(3,$B$3:B17)+0,"") -> 15 | B17: 王西希 | C17: 榕江县 | D17: 幼儿园 | E17: 学前教育 | F17: 015 | G17: 05 | H17: 05011301505 | I17: 55 | J17: 8 | K17: 第42候考室 | L17: 第42考场 | M17: 下午场 | N17: 20501164238 | O17: 70.67 | P17: 19 | Q17: 27.5 | R17: 35.34 | S17: 62.84 | T17: =IF(S17=0,"",SUMPRODUCT(($AB$3:$AB$196=AA17)*($T$3:$T$196>S17))+1) -> 15
A18: =IF(B18<>"",SUBTOTAL(3,$B$3:B18)+0,"") -> 16 | B18: 杨正姣 | C18: 榕江县 | D18: 幼儿园 | E18: 学前教育 | F18: 010 | G18: 27 | H18: 05011301027 | I18: 51.5 | J18: 15 | K18: 第42候考室 | L18: 第42考场 | M18: 下午场 | N18: 20501164246 | O18: 73.67 | P18: 14 | Q18: 25.75 | R18: 36.84 | S18: 62.59 | T18: =IF(S18=0,"",SUMPRODUCT(($AB$3:$AB$196=AA18)*($T$3:$T$196>S18))+1) -> 16
A19: =IF(B19<>"",SUBTOTAL(3,$B$3:B19)+0,"") -> 17 | B19: 龙晓 | C19: 榕江县 | D19: 幼儿园 | E19: 学前教育 | F19: 009 | G19: 04 | H19: 05011300904 | I19: 50 | J19: 21 | K19: 第42候考室 | L19: 第42考场 | M19: 下午场 | N19: 20501164251 | O19: 74.67 | P19: 13 | Q19: 25 | R19: 37.34 | S19: 62.34 | T19: =IF(S19=0,"",SUMPRODUCT(($AB$3:$AB$196=AA19)*($T$3:$T$196>S19))+1) -> 17
A20: =IF(B20<>"",SUBTOTAL(3,$B$3:B20)+0,"") -> 18 | B20: 石港归 | C20: 榕江县 | D20: 幼儿园 | E20: 学前教育 | F20: 017 | G20: 09 | H20: 05011301709 | I20: 52 | J20: 13 | K20: 第42候考室 | L20: 第42考场 | M20: 下午场 | N20: 20501164244 | O20: 72.33 | P20: 16 | Q20: 26 | R20: 36.17 | S20: 62.17 | T20: =IF(S20=0,"",SUMPRODUCT(($AB$3:$AB$196=AA20)*($T$3:$T$196>S20))+1) -> 18
A21: =IF(B21<>"",SUBTOTAL(3,$B$3:B21)+0,"") -> 19 | B21: 杨泓 | C21: 榕江县 | D21: 幼儿园 | E21: 学前教育 | F21: 008 | G21: 19 | H21: 05011300819 | I21: 51 | J21: 18 | K21: 第42候考室 | L21: 第42考场 | M21: 下午场 | N21: 20501164248 | O21: 71 | P21: 18 | Q21: 25.5 | R21: 35.5 | S21: 61 | T21: =IF(S21=0,"",SUMPRODUCT(($AB$3:$AB$196=AA21)*($T$3:$T$196>S21))+1) -> 19
A22: =IF(B22<>"",SUBTOTAL(3,$B$3:B22)+0,"") -> 20 | B22: 梁婷婷 | C22: 榕江县 | D22: 幼儿园 | E22: 学前教育 | F22: 011 | G22: 09 | H22: 05011301109 | I22: 51.5 | J22: 15 | K22: 第42候考室 | L22: 第42考场 | M22: 下午场 | N22: 20501164247 | O22: 69 | P22: 20 | Q22: 25.75 | R22: 34.5 | S22: 60.25 | T22: =IF(S22=0,"",SUMPRODUCT(($AB$3:$AB$196=AA22)*($T$3:$T$196>S22))+1) -> 20
A23: =IF(B23<>"",SUBTOTAL(3,$B$3:B23)+0,"") -> 21 | B23: 石媛媛 | C23: 榕江县 | D23: 幼儿园 | E23: 学前教育 | F23: 009 | G23: 20 | H23: 05011300920 | I23: 51.5 | J23: 15 | K23: 第42候考室 | L23: 第42考场 | M23: 下午场 | N23: 20501164245 | O23: 68.33 | P23: 21 | Q23: 25.75 | R23: 34.17 | S23: 59.92 | T23: =IF(S23=0,"",SUMPRODUCT(($AB$3:$AB$196=AA23)*($T$3:$T$196>S23))+1) -> 21
A24: =IF(B24<>"",SUBTOTAL(3,$B$3:B24)+0,"") -> 22 | B24: 张克慈 | C24: 榕江县 | D24: 幼儿园 | E24: 学前教育 | F24: 016 | G24: 25 | H24: 05011301625 | I24: 50 | J24: 21 | K24: 第42候考室 | L24: 第42考场 | M24: 下午场 | N24: 20501164252 | O24: 0 | Q24: 25 | R24: 0 | S24: 25 | T24: =IF(S24=0,"",SUMPRODUCT(($AB$3:$AB$196=AA24)*($T$3:$T$196>S24))+1) -> 22
A25: =IF(B25<>"",SUBTOTAL(3,$B$3:B25)+0,"") -> 23 | B25: 李艳兰 | C25: 榕江县 | D25: 小学 | E25: 语文 | F25: 022 | G25: 17 | H25: 05020102217 | I25: 76.5 | J25: 1 | K25: 第03-1候考室 | L25: 第03考场 | M25: 上午场 | N25: 10502010301 | O25: 84 | P25: 4 | Q25: 38.25 | R25: 42 | S25: 80.25 | T25: =IF(S25=0,"",SUMPRODUCT(($AB$3:$AB$196=AA25)*($T$3:$T$196>S25))+1) -> 1 | U25: 入围体检
A26: =IF(B26<>"",SUBTOTAL(3,$B$3:B26)+0,"") -> 24 | B26: 杨俨 | C26: 榕江县 | D26: 小学 | E26: 语文 | F26: 021 | G26: 09 | H26: 05020102109 | I26: 76 | J26: 2 | K26: 第03-1候考室 | L26: 第03考场 | M26: 上午场 | N26: 10502010302 | O26: 84.33 | P26: 2 | Q26: 38 | R26: 42.17 | S26: 80.17 | T26: =IF(S26=0,"",SUMPRODUCT(($AB$3:$AB$196=AA26)*($T$3:$T$196>S26))+1) -> 2 | U26: 入围体检
A27: =IF(B27<>"",SUBTOTAL(3,$B$3:B27)+0,"") -> 25 | B27: 廖毓勤 | C27: 榕江县 | D27: 小学 | E27: 语文 | F27: 022 | G27: 30 | H27: 05020102230 | I27: 73 | J27: 6 | K27: 第03-1候考室 | L27: 第03考场 | M27: 上午场 | N27: 10502010307 | O27: 85 | P27: 1 | Q27: 36.5 | R27: 42.5 | S27: 79 | T27: =IF(S27=0,"",SUMPRODUCT(($AB$3:$AB$196=AA27)*($T$3:$T$196>S27))+1) -> 3 | U27: 入围体检
A28: =IF(B28<>"",SUBTOTAL(3,$B$3:B28)+0,"") -> 26 | B28: 黄远利 | C28: 榕江县 | D28: 小学 | E28: 语文 | F28: 022 | G28: 01 | H28: 05020102201 | I28: 74 | J28: 4 | K28: 第03-1候考室 | L28: 第03考场 | M28: 上午场 | N28: 10502010305 | O28: 83.33 | P28: 8 | Q28: 37 | R28: 41.67 | S28: 78.67 | T28: =IF(S28=0,"",SUMPRODUCT(($AB$3:$AB$196=AA28)*($T$3:$T$196>S28))+1) -> 4 | U28: 入围体检
A29: =IF(B29<>"",SUBTOTAL(3,$B$3:B29)+0,"") -> 27 | B29: 邰政菊 | C29: 榕江县 | D29: 小学 | E29: 语文 | F29: 023 | G29: 07 | H29: 05020102307 | I29: 75.5 | J29: 3 | K29: 第03-1候考室 | L29: 第03考场 | M29: 上午场 | N29: 10502010303 | O29: 80.33 | P29: 37 | Q29: 37.75 | R29: 40.17 | S29: 77.92 | T29: =IF(S29=0,"",SUMPRODUCT(($AB$3:$AB$196=AA29)*($T$3:$T$196>S29))+1) -> 5 | U29: 入围体检
A30: =IF(B30<>"",SUBTOTAL(3,$B$3:B30)+0,"") -> 28 | B30: 杨正月 | C30: 榕江县 | D30: 小学 | E30: 语文 | F30: 024 | G30: 22 | H30: 05020102422 | I30: 70 | J30: 15 | K30: 第03-1候考室 | L30: 第03考场 | M30: 上午场 | N30: 10502010318 | O30: 84.33 | P30: 2 | Q30: 35 | R30: 42.17 | S30: 77.17 | T30: =IF(S30=0,"",SUMPRODUCT(($AB$3:$AB$196=AA30)*($T$3:$T$196>S30))+1) -> 6 | U30: 入围体检
A31: =IF(B31<>"",SUBTOTAL(3,$B$3:B31)+0,"") -> 29 | B31: 莫孟兰 | C31: 榕江县 | D31: 小学 | E31: 语文 | F31: 021 | G31: 18 | H31: 05020102118 | I31: 71 | J31: 9 | K31: 第03-1候考室 | L31: 第03考场 | M31: 上午场 | N31: 10502010311 | O31: 82.67 | P31: 15 | Q31: 35.5 | R31: 41.34 | S31: 76.84 | T31: =IF(S31=0,"",SUMPRODUCT(($AB$3:$AB$196=AA31)*($T$3:$T$196>S31))+1) -> 7 | U31: 入围体检
A32: =IF(B32<>"",SUBTOTAL(3,$B$3:B32)+0,"") -> 30 | B32: 吴松立 | C32: 榕江县 | D32: 小学 | E32: 语文 | F32: 021 | G32: 15 | H32: 05020102115 | I32: 73 | J32: 6 | K32: 第03-1候考室 | L32: 第03考场 | M32: 上午场 | N32: 10502010306 | O32: 80.33 | P32: 37 | Q32: 36.5 | R32: 40.17 | S32: 76.67 | T32: =IF(S32=0,"",SUMPRODUCT(($AB$3:$AB$196=AA32)*($T$3:$T$196>S32))+1) -> 8 | U32: 入围体检
A33: =IF(B33<>"",SUBTOTAL(3,$B$3:B33)+0,"") -> 31 | B33: 吴姣姣 | C33: 榕江县 | D33: 小学 | E33: 语文 | F33: 019 | G33: 16 | H33: 05020101916 | I33: 70 | J33: 15 | K33: 第03-1候考室 | L33: 第03考场 | M33: 上午场 | N33: 10502010315 | O33: 83.33 | P33: 8 | Q33: 35 | R33: 41.67 | S33: 76.67 | T33: =IF(S33=0,"",SUMPRODUCT(($AB$3:$AB$196=AA33)*($T$3:$T$196>S33))+1) -> 8 | U33: 入围体检
A34: =IF(B34<>"",SUBTOTAL(3,$B$3:B34)+0,"") -> 32 | B34: 潘巧祝 | C34: 榕江县 | D34: 小学 | E34: 语文 | F34: 020 | G34: 24 | H34: 05020102024 | I34: 74 | J34: 4 | K34: 第03-1候考室 | L34: 第03考场 | M34: 上午场 | N34: 10502010304 | O34: 79 | P34: 57 | Q34: 37 | R34: 39.5 | S34: 76.5 | T34: =IF(S34=0,"",SUMPRODUCT(($AB$3:$AB$196=AA34)*($T$3:$T$196>S34))+1) -> 10 | U34: 入围体检
A35: =IF(B35<>"",SUBTOTAL(3,$B$3:B35)+0,"") -> 33 | B35: 李依芳 | C35: 榕江县 | D35: 小学 | E35: 语文 | F35: 024 | G35: 29 | H35: 05020102429 | I35: 70.5 | J35: 14 | K35: 第03-1候考室 | L35: 第03考场 | M35: 上午场 | N35: 10502010314 | O35: 82.33 | P35: 18 | Q35: 35.25 | R35: 41.17 | S35: 76.42 | T35: =IF(S35=0,"",SUMPRODUCT(($AB$3:$AB$196=AA35)*($T$3:$T$196>S35))+1) -> 11 | U35: 入围体检
A36: =IF(B36<>"",SUBTOTAL(3,$B$3:B36)+0,"") -> 34 | B36: 吴艺婷 | C36: 榕江县 | D36: 小学 | E36: 语文 | F36: 019 | G36: 10 | H36: 05020101910 | I36: 71 | J36: 9 | K36: 第03-1候考室 | L36: 第03考场 | M36: 上午场 | N36: 10502010309 | O36: 81.67 | P36: 25 | Q36: 35.5 | R36: 40.84 | S36: 76.34 | T36: =IF(S36=0,"",SUMPRODUCT(($AB$3:$AB$196=AA36)*($T$3:$T$196>S36))+1) -> 12 | U36: 入围体检
A37: =IF(B37<>"",SUBTOTAL(3,$B$3:B37)+0,"") -> 35 | B37: 文贤杰 | C37: 榕江县 | D37: 小学 | E37: 语文 | F37: 020 | G37: 08 | H37: 05020102008 | I37: 69 | J37: 22 | K37: 第03-1候考室 | L37: 第03考场 | M37: 上午场 | N37: 10502010323 | O37: 83 | P37: 11 | Q37: 34.5 | R37: 41.5 | S37: 76 | T37: =IF(S37=0,"",SUMPRODUCT(($AB$3:$AB$196=AA37)*($T$3:$T$196>S37))+1) -> 13 | U37: 入围体检
A38: =IF(B38<>"",SUBTOTAL(3,$B$3:B38)+0,"") -> 36 | B38: 雍文乡 | C38: 榕江县 | D38: 小学 | E38: 语文 | F38: 019 | G38: 13 | H38: 05020101913 | I38: 69.5 | J38: 20 | K38: 第03-1候考室 | L38: 第03考场 | M38: 上午场 | N38: 10502010320 | O38: 82.33 | P38: 18 | Q38: 34.75 | R38: 41.17 | S38: 75.92 | T38: =IF(S38=0,"",SUMPRODUCT(($AB$3:$AB$196=AA38)*($T$3:$T$196>S38))+1) -> 14 | U38: 入围体检
A39: =IF(B39<>"",SUBTOTAL(3,$B$3:B39)+0,"") -> 37 | B39: 刘世六 | C39: 榕江县 | D39: 小学 | E39: 语文 | F39: 019 | G39: 01 | H39: 05020101901 | I39: 72 | J39: 8 | K39: 第03-1候考室 | L39: 第03考场 | M39: 上午场 | N39: 10502010308 | O39: 79.67 | P39: 48 | Q39: 36 | R39: 39.84 | S39: 75.84 | T39: =IF(S39=0,"",SUMPRODUCT(($AB$3:$AB$196=AA39)*($T$3:$T$196>S39))+1) -> 15 | U39: 入围体检
A40: =IF(B40<>"",SUBTOTAL(3,$B$3:B40)+0,"") -> 38 | B40: 付云佩 | C40: 榕江县 | D40: 小学 | E40: 语文 | F40: 020 | G40: 07 | H40: 05020102007 | I40: 70 | J40: 15 | K40: 第03-1候考室 | L40: 第03考场 | M40: 上午场 | N40: 10502010316 | O40: 81.67 | P40: 25 | Q40: 35 | R40: 40.84 | S40: 75.84 | T40: =IF(S40=0,"",SUMPRODUCT(($AB$3:$AB$196=AA40)*($T$3:$T$196>S40))+1) -> 15 | U40: 入围体检
A41: =IF(B41<>"",SUBTOTAL(3,$B$3:B41)+0,"") -> 39 | B41: 杨通珍 | C41: 榕江县 | D41: 小学 | E41: 语文 | F41: 021 | G41: 29 | H41: 05020102129 | I41: 68 | J41: 24 | K41: 第03-1候考室 | L41: 第03考场 | M41: 上午场 | N41: 10502010327 | O41: 83 | P41: 11 | Q41: 34 | R41: 41.5 | S41: 75.5 | T41: =IF(S41=0,"",SUMPRODUCT(($AB$3:$AB$196=AA41)*($T$3:$T$196>S41))+1) -> 17 | U41: 入围体检
A42: =IF(B42<>"",SUBTOTAL(3,$B$3:B42)+0,"") -> 40 | B42: 段丽晴 | C42: 榕江县 | D42: 小学 | E42: 语文 | F42: 019 | G42: 30 | H42: 05020101930 | I42: 71 | J42: 9 | K42: 第03-1候考室 | L42: 第03考场 | M42: 上午场 | N42: 10502010310 | O42: 79.67 | P42: 48 | Q42: 35.5 | R42: 39.84 | S42: 75.34 | T42: =IF(S42=0,"",SUMPRODUCT(($AB$3:$AB$196=AA42)*($T$3:$T$196>S42))+1) -> 18 | U42: 入围体检
A43: =IF(B43<>"",SUBTOTAL(3,$B$3:B43)+0,"") -> 41 | B43: 文奇银 | C43: 榕江县 | D43: 小学 | E43: 语文 | F43: 021 | G43: 20 | H43: 05020102120 | I43: 71 | J43: 9 | K43: 第03-1候考室 | L43: 第03考场 | M43: 上午场 | N43: 10502010312 | O43: 79.67 | P43: 48 | Q43: 35.5 | R43: 39.84 | S43: 75.34 | T43: =IF(S43=0,"",SUMPRODUCT(($AB$3:$AB$196=AA43)*($T$3:$T$196>S43))+1) -> 18 | U43: 入围体检
A44: =IF(B44<>"",SUBTOTAL(3,$B$3:B44)+0,"") -> 42 | B44: 龚学芳 | C44: 榕江县 | D44: 小学 | E44: 语文 | F44: 020 | G44: 23 | H44: 05020102023 | I44: 67 | J44: 33 | K44: 第03-1候考室 | L44: 第03考场 | M44: 上午场 | N44: 10502010334 | O44: 83.67 | P44: 6 | Q44: 33.5 | R44: 41.84 | S44: 75.34 | T44: =IF(S44=0,"",SUMPRODUCT(($AB$3:$AB$196=AA44)*($T$3:$T$196>S44))+1) -> 18 | U44: 入围体检
A45: =IF(B45<>"",SUBTOTAL(3,$B$3:B45)+0,"") -> 43 | B45: 龙玉莲 | C45: 榕江县 | D45: 小学 | E45: 语文 | F45: 024 | G45: 21 | H45: 05020102421 | I45: 67.5 | J45: 31 | K45: 第03-1候考室 | L45: 第03考场 | M45: 上午场 | N45: 10502010332 | O45: 82.67 | P45: 15 | Q45: 33.75 | R45: 41.34 | S45: 75.09 | T45: =IF(S45=0,"",SUMPRODUCT(($AB$3:$AB$196=AA45)*($T$3:$T$196>S45))+1) -> 21 | U45: 入围体检
A46: =IF(B46<>"",SUBTOTAL(3,$B$3:B46)+0,"") -> 44 | B46: 陆胜玲 | C46: 榕江县 | D46: 小学 | E46: 语文 | F46: 019 | G46: 25 | H46: 05020101925 | I46: 69 | J46: 22 | K46: 第03-1候考室 | L46: 第03考场 | M46: 上午场 | N46: 10502010322 | O46: 80.67 | P46: 35 | Q46: 34.5 | R46: 40.34 | S46: 74.84 | T46: =IF(S46=0,"",SUMPRODUCT(($AB$3:$AB$196=AA46)*($T$3:$T$196>S46))+1) -> 22 | U46: 入围体检
A47: =IF(B47<>"",SUBTOTAL(3,$B$3:B47)+0,"") -> 45 | B47: 金荣月 | C47: 榕江县 | D47: 小学 | E47: 语文 | F47: 020 | G47: 15 | H47: 05020102015 | I47: 68 | J47: 24 | K47: 第03-1候考室 | L47: 第03考场 | M47: 上午场 | N47: 10502010326 | O47: 81.67 | P47: 25 | Q47: 34 | R47: 40.84 | S47: 74.84 | T47: =IF(S47=0,"",SUMPRODUCT(($AB$3:$AB$196=AA47)*($T$3:$T$196>S47))+1) -> 22 | U47: 入围体检
A48: =IF(B48<>"",SUBTOTAL(3,$B$3:B48)+0,"") -> 46 | B48: 胡春梅 | C48: 榕江县 | D48: 小学 | E48: 语文 | F48: 025 | G48: 06 | H48: 05020102506 | I48: 68 | J48: 24 | K48: 第03-1候考室 | L48: 第03考场 | M48: 上午场 | N48: 10502010330 | O48: 81.67 | P48: 25 | Q48: 34 | R48: 40.84 | S48: 74.84 | T48: =IF(S48=0,"",SUMPRODUCT(($AB$3:$AB$196=AA48)*($T$3:$T$196>S48))+1) -> 22 | U48: 入围体检
A49: =IF(B49<>"",SUBTOTAL(3,$B$3:B49)+0,"") -> 47 | B49: 杨文艳 | C49: 榕江县 | D49: 小学 | E49: 语文 | F49: 022 | G49: 29 | H49: 05020102229 | I49: 69.5 | J49: 20 | K49: 第03-1候考室 | L49: 第03考场 | M49: 上午场 | N49: 10502010321 | O49: 80 | P49: 45 | Q49: 34.75 | R49: 40 | S49: 74.75 | T49: =IF(S49=0,"",SUMPRODUCT(($AB$3:$AB$196=AA49)*($T$3:$T$196>S49))+1) -> 25
A50: =IF(B50<>"",SUBTOTAL(3,$B$3:B50)+0,"") -> 48 | B50: 李盼盼 | C50: 榕江县 | D50: 小学 | E50: 语文 | F50: 021 | G50: 11 | H50: 05020102111 | I50: 65.5 | J50: 41 | K50: 第03-2候考室 | L50: 第03考场 | M50: 上午场 | N50: 10502010342 | O50: 84 | P50: 4 | Q50: 32.75 | R50: 42 | S50: 74.75 | T50: =IF(S50=0,"",SUMPRODUCT(($AB$3:$AB$196=AA50)*($T$3:$T$196>S50))+1) -> 25
A51: =IF(B51<>"",SUBTOTAL(3,$B$3:B51)+0,"") -> 49 | B51: 吴青凤 | C51: 榕江县 | D51: 小学 | E51: 语文 | F51: 022 | G51: 20 | H51: 05020102220 | I51: 70 | J51: 15 | K51: 第03-1候考室 | L51: 第03考场 | M51: 上午场 | N51: 10502010317 | O51: 79.33 | P51: 52 | Q51: 35 | R51: 39.67 | S51: 74.67 | T51: =IF(S51=0,"",SUMPRODUCT(($AB$3:$AB$196=AA51)*($T$3:$T$196>S51))+1) -> 27
A52: =IF(B52<>"",SUBTOTAL(3,$B$3:B52)+0,"") -> 50 | B52: 黄钦滢 | C52: 榕江县 | D52: 小学 | E52: 语文 | F52: 023 | G52: 20 | H52: 05020102320 | I52: 68 | J52: 24 | K52: 第03-1候考室 | L52: 第03考场 | M52: 上午场 | N52: 10502010329 | O52: 81 | P52: 31 | Q52: 34 | R52: 40.5 | S52: 74.5 | T52: =IF(S52=0,"",SUMPRODUCT(($AB$3:$AB$196=AA52)*($T$3:$T$196>S52))+1) -> 28
A53: =IF(B53<>"",SUBTOTAL(3,$B$3:B53)+0,"") -> 51 | B53: 韦庭青 | C53: 榕江县 | D53: 小学 | E53: 语文 | F53: 019 | G53: 07 | H53: 05020101907 | I53: 66.5 | J53: 35 | K53: 第03-1候考室 | L53: 第03考场 | M53: 上午场 | N53: 10502010335 | O53: 82.33 | P53: 18 | Q53: 33.25 | R53: 41.17 | S53: 74.42 | T53: =IF(S53=0,"",SUMPRODUCT(($AB$3:$AB$196=AA53)*($T$3:$T$196>S53))+1) -> 29
A54: =IF(B54<>"",SUBTOTAL(3,$B$3:B54)+0,"") -> 52 | B54: 吴冬叶 | C54: 榕江县 | D54: 小学 | E54: 语文 | F54: 022 | G54: 16 | H54: 05020102216 | I54: 66.5 | J54: 35 | K54: 第03-1候考室 | L54: 第03考场 | M54: 上午场 | N54: 10502010336 | O54: 82 | P54: 21 | Q54: 33.25 | R54: 41 | S54: 74.25 | T54: =IF(S54=0,"",SUMPRODUCT(($AB$3:$AB$196=AA54)*($T$3:$T$196>S54))+1) -> 30
A55: =IF(B55<>"",SUBTOTAL(3,$B$3:B55)+0,"") -> 53 | B55: 杨通云 | C55: 榕江县 | D55: 小学 | E55: 语文 | F55: 020 | G55: 13 | H55: 05020102013 | I55: 65.5 | J55: 41 | K55: 第03-2候考室 | L55: 第03考场 | M55: 上午场 | N55: 10502010341 | O55: 83 | P55: 11 | Q55: 32.75 | R55: 41.5 | S55: 74.25 | T55: =IF(S55=0,"",SUMPRODUCT(($AB$3:$AB$196=AA55)*($T$3:$T$196>S55))+1) -> 30
A56: =IF(B56<>"",SUBTOTAL(3,$B$3:B56)+0,"") -> 54 | B56: 雷小英 | C56: 榕江县 | D56: 小学 | E56: 语文 | F56: 021 | G56: 22 | H56: 05020102122 | I56: 71 | J56: 9 | K56: 第03-1候考室 | L56: 第03考场 | M56: 上午场 | N56: 10502010313 | O56: 77.33 | P56: 64 | Q56: 35.5 | R56: 38.67 | S56: 74.17 | T56: =IF(S56=0,"",SUMPRODUCT(($AB$3:$AB$196=AA56)*($T$3:$T$196>S56))+1) -> 32
A57: =IF(B57<>"",SUBTOTAL(3,$B$3:B57)+0,"") -> 55 | B57: 潘亭杰 | C57: 榕江县 | D57: 小学 | E57: 语文 | F57: 019 | G57: 24 | H57: 05020101924 | I57: 68 | J57: 24 | K57: 第03-1候考室 | L57: 第03考场 | M57: 上午场 | N57: 10502010324 | O57: 80.33 | P57: 37 | Q57: 34 | R57: 40.17 | S57: 74.17 | T57: =IF(S57=0,"",SUMPRODUCT(($AB$3:$AB$196=AA57)*($T$3:$T$196>S57))+1) -> 32
A58: =IF(B58<>"",SUBTOTAL(3,$B$3:B58)+0,"") -> 56 | B58: 罗组敏 | C58: 榕江县 | D58: 小学 | E58: 语文 | F58: 020 | G58: 21 | H58: 05020102021 | I58: 66 | J58: 37 | K58: 第03-1候考室 | L58: 第03考场 | M58: 上午场 | N58: 10502010337 | O58: 82 | P58: 21 | Q58: 33 | R58: 41 | S58: 74 | T58: =IF(S58=0,"",SUMPRODUCT(($AB$3:$AB$196=AA58)*($T$3:$T$196>S58))+1) -> 34
A59: =IF(B59<>"",SUBTOTAL(3,$B$3:B59)+0,"") -> 57 | B59: 杨国艳 | C59: 榕江县 | D59: 小学 | E59: 语文 | F59: 022 | G59: 24 | H59: 05020102224 | I59: 66 | J59: 37 | K59: 第03-2候考室 | L59: 第03考场 | M59: 上午场 | N59: 10502010339 | O59: 81.67 | P59: 25 | Q59: 33 | R59: 40.84 | S59: 73.84 | T59: =IF(S59=0,"",SUMPRODUCT(($AB$3:$AB$196=AA59)*($T$3:$T$196>S59))+1) -> 35
A60: =IF(B60<>"",SUBTOTAL(3,$B$3:B60)+0,"") -> 58 | B60: 叶家春 | C60: 榕江县 | D60: 小学 | E60: 语文 | F60: 023 | G60: 02 | H60: 05020102302 | I60: 65 | J60: 46 | K60: 第03-2候考室 | L60: 第03考场 | M60: 上午场 | N60: 10502010349 | O60: 82.67 | P60: 15 | Q60: 32.5 | R60: 41.34 | S60: 73.84 | T60: =IF(S60=0,"",SUMPRODUCT(($AB$3:$AB$196=AA60)*($T$3:$T$196>S60))+1) -> 35
A61: =IF(B61<>"",SUBTOTAL(3,$B$3:B61)+0,"") -> 59 | B61: 朱天丝 | C61: 榕江县 | D61: 小学 | E61: 语文 | F61: 024 | G61: 04 | H61: 05020102404 | I61: 67.5 | J61: 31 | K61: 第03-1候考室 | L61: 第03考场 | M61: 上午场 | N61: 10502010331 | O61: 80 | P61: 45 | Q61: 33.75 | R61: 40 | S61: 73.75 | T61: =IF(S61=0,"",SUMPRODUCT(($AB$3:$AB$196=AA61)*($T$3:$T$196>S61))+1) -> 37
A62: =IF(B62<>"",SUBTOTAL(3,$B$3:B62)+0,"") -> 60 | B62: 杨园莉 | C62: 榕江县 | D62: 小学 | E62: 语文 | F62: 019 | G62: 08 | H62: 05020101908 | I62: 64.5 | J62: 50 | K62: 第03-2候考室 | L62: 第03考场 | M62: 上午场 | N62: 10502010350 | O62: 83 | P62: 11 | Q62: 32.25 | R62: 41.5 | S62: 73.75 | T62: =IF(S62=0,"",SUMPRODUCT(($AB$3:$AB$196=AA62)*($T$3:$T$196>S62))+1) -> 37
A63: =IF(B63<>"",SUBTOTAL(3,$B$3:B63)+0,"") -> 61 | B63: 黎芸 | C63: 榕江县 | D63: 小学 | E63: 语文 | F63: 019 | G63: 19 | H63: 05020101919 | I63: 63.5 | J63: 59 | K63: 第03-2候考室 | L63: 第03考场 | M63: 上午场 | N63: 10502010359 | O63: 83.33 | P63: 8 | Q63: 31.75 | R63: 41.67 | S63: 73.42 | T63: =IF(S63=0,"",SUMPRODUCT(($AB$3:$AB$196=AA63)*($T$3:$T$196>S63))+1) -> 39
A64: =IF(B64<>"",SUBTOTAL(3,$B$3:B64)+0,"") -> 62 | B64: 韦美丽 | C64: 榕江县 | D64: 小学 | E64: 语文 | F64: 020 | G64: 14 | H64: 05020102014 | I64: 68 | J64: 24 | K64: 第03-1候考室 | L64: 第03考场 | M64: 上午场 | N64: 10502010325 | O64: 78.67 | P64: 59 | Q64: 34 | R64: 39.34 | S64: 73.34 | T64: =IF(S64=0,"",SUMPRODUCT(($AB$3:$AB$196=AA64)*($T$3:$T$196>S64))+1) -> 40
A65: =IF(B65<>"",SUBTOTAL(3,$B$3:B65)+0,"") -> 63 | B65: 石倩 | C65: 榕江县 | D65: 小学 | E65: 语文 | F65: 019 | G65: 02 | H65: 05020101902 | I65: 65 | J65: 46 | K65: 第03-2候考室 | L65: 第03考场 | M65: 上午场 | N65: 10502010346 | O65: 81.67 | P65: 25 | Q65: 32.5 | R65: 40.84 | S65: 73.34 | T65: =IF(S65=0,"",SUMPRODUCT(($AB$3:$AB$196=AA65)*($T$3:$T$196>S65))+1) -> 40
A66: =IF(B66<>"",SUBTOTAL(3,$B$3:B66)+0,"") -> 64 | B66: 杨情缘 | C66: 榕江县 | D66: 小学 | E66: 语文 | F66: 021 | G66: 30 | H66: 05020102130 | I66: 66 | J66: 37 | K66: 第03-2候考室 | L66: 第03考场 | M66: 上午场 | N66: 10502010338 | O66: 80.33 | P66: 37 | Q66: 33 | R66: 40.17 | S66: 73.17 | T66: =IF(S66=0,"",SUMPRODUCT(($AB$3:$AB$196=AA66)*($T$3:$T$196>S66))+1) -> 42
A67: =IF(B67<>"",SUBTOTAL(3,$B$3:B67)+0,"") -> 65 | B67: 汪亚萍 | C67: 榕江县 | D67: 小学 | E67: 语文 | F67: 023 | G67: 01 | H67: 05020102301 | I67: 66 | J67: 37 | K67: 第03-2候考室 | L67: 第03考场 | M67: 上午场 | N67: 10502010340 | O67: 80.33 | P67: 37 | Q67: =ROUND(I67*0.5,2) -> 33 | R67: =ROUND(O67*0.5,2) -> 40.17 | S67: =Q67+R67 -> 73.17 | T67: =IF(S67=0,"",SUMPRODUCT(($AB$3:$AB$196=AA67)*($T$3:$T$196>S67))+1) -> 42
A68: =IF(B68<>"",SUBTOTAL(3,$B$3:B68)+0,"") -> 66 | B68: 潘明星 | C68: 榕江县 | D68: 小学 | E68: 语文 | F68: 022 | G68: 26 | H68: 05020102226 | I68: 65.5 | J68: 41 | K68: 第03-2候考室 | L68: 第03考场 | M68: 上午场 | N68: 10502010344 | O68: 80.67 | P68: 35 | Q68: 32.75 | R68: 40.34 | S68: 73.09 | T68: =IF(S68=0,"",SUMPRODUCT(($AB$3:$AB$196=AA68)*($T$3:$T$196>S68))+1) -> 44
A69: =IF(B69<>"",SUBTOTAL(3,$B$3:B69)+0,"") -> 67 | B69: 王米票 | C69: 榕江县 | D69: 小学 | E69: 语文 | F69: 022 | G69: 21 | H69: 05020102221 | I69: 62.5 | J69: 69 | K69: 第03-2候考室 | L69: 第03考场 | M69: 上午场 | N69: 10502010370 | O69: 83.67 | P69: 6 | Q69: 31.25 | R69: 41.84 | S69: 73.09 | T69: =IF(S69=0,"",SUMPRODUCT(($AB$3:$AB$196=AA69)*($T$3:$T$196>S69))+1) -> 44
A70: =IF(B70<>"",SUBTOTAL(3,$B$3:B70)+0,"") -> 68 | B70: 张娟娟 | C70: 榕江县 | D70: 小学 | E70: 语文 | F70: 020 | G70: 22 | H70: 05020102022 | I70: 65 | J70: 46 | K70: 第03-2候考室 | L70: 第03考场 | M70: 上午场 | N70: 10502010347 | O70: 81 | P70: 31 | Q70: 32.5 | R70: 40.5 | S70: 73 | T70: =IF(S70=0,"",SUMPRODUCT(($AB$3:$AB$196=AA70)*($T$3:$T$196>S70))+1) -> 46
A71: =IF(B71<>"",SUBTOTAL(3,$B$3:B71)+0,"") -> 69 | B71: 余洋 | C71: 榕江县 | D71: 小学 | E71: 语文 | F71: 025 | G71: 15 | H71: 05020102515 | I71: 70 | J71: 15 | K71: 第03-1候考室 | L71: 第03考场 | M71: 上午场 | N71: 10502010319 | O71: 75.67 | P71: 67 | Q71: 35 | R71: 37.84 | S71: 72.84 | T71: =IF(S71=0,"",SUMPRODUCT(($AB$3:$AB$196=AA71)*($T$3:$T$196>S71))+1) -> 47
A72: =IF(B72<>"",SUBTOTAL(3,$B$3:B72)+0,"") -> 70 | B72: 王银银 | C72: 榕江县 | D72: 小学 | E72: 语文 | F72: 021 | G72: 23 | H72: 05020102123 | I72: 63.5 | J72: 59 | K72: 第03-2候考室 | L72: 第03考场 | M72: 上午场 | N72: 10502010363 | O72: 82 | P72: 21 | Q72: 31.75 | R72: 41 | S72: 72.75 | T72: =IF(S72=0,"",SUMPRODUCT(($AB$3:$AB$196=AA72)*($T$3:$T$196>S72))+1) -> 48
A73: =IF(B73<>"",SUBTOTAL(3,$B$3:B73)+0,"") -> 71 | B73: 王承美 | C73: 榕江县 | D73: 小学 | E73: 语文 | F73: 020 | G73: 19 | H73: 05020102019 | I73: 67 | J73: 33 | K73: 第03-1候考室 | L73: 第03考场 | M73: 上午场 | N73: 10502010333 | O73: 78 | P73: 62 | Q73: 33.5 | R73: 39 | S73: 72.5 | T73: =IF(S73=0,"",SUMPRODUCT(($AB$3:$AB$196=AA73)*($T$3:$T$196>S73))+1) -> 49
A74: =IF(B74<>"",SUBTOTAL(3,$B$3:B74)+0,"") -> 72 | B74: 潘世云 | C74: 榕江县 | D74: 小学 | E74: 语文 | F74: 021 | G74: 26 | H74: 05020102126 | I74: 64 | J74: 55 | K74: 第03-2候考室 | L74: 第03考场 | M74: 上午场 | N74: 10502010357 | O74: 81 | P74: 31 | Q74: 32 | R74: 40.5 | S74: 72.5 | T74: =IF(S74=0,"",SUMPRODUCT(($AB$3:$AB$196=AA74)*($T$3:$T$196>S74))+1) -> 49
A75: =IF(B75<>"",SUBTOTAL(3,$B$3:B75)+0,"") -> 73 | B75: 朱永琴 | C75: 榕江县 | D75: 小学 | E75: 语文 | F75: 019 | G75: 03 | H75: 05020101903 | I75: 63 | J75: 66 | K75: 第03-2候考室 | L75: 第03考场 | M75: 上午场 | N75: 10502010366 | O75: 82 | P75: 21 | Q75: 31.5 | R75: 41 | S75: 72.5 | T75: =IF(S75=0,"",SUMPRODUCT(($AB$3:$AB$196=AA75)*($T$3:$T$196>S75))+1) -> 49
A76: =IF(B76<>"",SUBTOTAL(3,$B$3:B76)+0,"") -> 74 | B76: 杨瑜荣 | C76: 榕江县 | D76: 小学 | E76: 语文 | F76: 022 | G76: 03 | H76: 05020102203 | I76: 65.5 | J76: 41 | K76: 第03-2候考室 | L76: 第03考场 | M76: 上午场 | N76: 10502010343 | O76: 79.33 | P76: 52 | Q76: 32.75 | R76: 39.67 | S76: 72.42 | T76: =IF(S76=0,"",SUMPRODUCT(($AB$3:$AB$196=AA76)*($T$3:$T$196>S76))+1) -> 52
A77: =IF(B77<>"",SUBTOTAL(3,$B$3:B77)+0,"") -> 75 | B77: 欧星星 | C77: 榕江县 | D77: 小学 | E77: 语文 | F77: 024 | G77: 14 | H77: 05020102414 | I77: 65.5 | J77: 41 | K77: 第03-2候考室 | L77: 第03考场 | M77: 上午场 | N77: 10502010345 | O77: 79.33 | P77: 52 | Q77: 32.75 | R77: 39.67 | S77: 72.42 | T77: =IF(S77=0,"",SUMPRODUCT(($AB$3:$AB$196=AA77)*($T$3:$T$196>S77))+1) -> 52
A78: =IF(B78<>"",SUBTOTAL(3,$B$3:B78)+0,"") -> 76 | B78: 高迅 | C78: 榕江县 | D78: 小学 | E78: 语文 | F78: 021 | G78: 25 | H78: 05020102125 | I78: 64.5 | J78: 50 | K78: 第03-2候考室 | L78: 第03考场 | M78: 上午场 | N78: 10502010351 | O78: 80.33 | P78: 37 | Q78: 32.25 | R78: 40.17 | S78: 72.42 | T78: =IF(S78=0,"",SUMPRODUCT(($AB$3:$AB$196=AA78)*($T$3:$T$196>S78))+1) -> 52
A79: =IF(B79<>"",SUBTOTAL(3,$B$3:B79)+0,"") -> 77 | B79: 李小艳 | C79: 榕江县 | D79: 小学 | E79: 语文 | F79: 024 | G79: 16 | H79: 05020102416 | I79: 64.5 | J79: 50 | K79: 第03-2候考室 | L79: 第03考场 | M79: 上午场 | N79: 10502010354 | O79: 80.33 | P79: 37 | Q79: 32.25 | R79: 40.17 | S79: 72.42 | T79: =IF(S79=0,"",SUMPRODUCT(($AB$3:$AB$196=AA79)*($T$3:$T$196>S79))+1) -> 52
A80: =IF(B80<>"",SUBTOTAL(3,$B$3:B80)+0,"") -> 78 | B80: 杨红连 | C80: 榕江县 | D80: 小学 | E80: 语文 | F80: 022 | G80: 18 | H80: 05020102218 | I80: 63.5 | J80: 59 | K80: 第03-2候考室 | L80: 第03考场 | M80: 上午场 | N80: 10502010365 | O80: 81 | P80: 31 | Q80: 31.75 | R80: 40.5 | S80: 72.25 | T80: =IF(S80=0,"",SUMPRODUCT(($AB$3:$AB$196=AA80)*($T$3:$T$196>S80))+1) -> 56
A81: =IF(B81<>"",SUBTOTAL(3,$B$3:B81)+0,"") -> 79 | B81: 文婧 | C81: 榕江县 | D81: 小学 | E81: 语文 | F81: 020 | G81: 20 | H81: 05020102020 | I81: 63.5 | J81: 59 | K81: 第03-2候考室 | L81: 第03考场 | M81: 上午场 | N81: 10502010361 | O81: 80.33 | P81: 37 | Q81: 31.75 | R81: 40.17 | S81: 71.92 | T81: =IF(S81=0,"",SUMPRODUCT(($AB$3:$AB$196=AA81)*($T$3:$T$196>S81))+1) -> 57
A82: =IF(B82<>"",SUBTOTAL(3,$B$3:B82)+0,"") -> 80 | B82: 杨正慧 | C82: 榕江县 | D82: 小学 | E82: 语文 | F82: 020 | G82: 16 | H82: 05020102016 | I82: 63.5 | J82: 59 | K82: 第03-2候考室 | L82: 第03考场 | M82: 上午场 | N82: 10502010360 | O82: 80 | P82: 45 | Q82: 31.75 | R82: 40 | S82: 71.75 | T82: =IF(S82=0,"",SUMPRODUCT(($AB$3:$AB$196=AA82)*($T$3:$T$196>S82))+1) -> 58
A83: =IF(B83<>"",SUBTOTAL(3,$B$3:B83)+0,"") -> 81 | B83: 杨柳 | C83: 榕江县 | D83: 小学 | E83: 语文 | F83: 019 | G83: 20 | H83: 05020101920 | I83: 64 | J83: 55 | K83: 第03-2候考室 | L83: 第03考场 | M83: 上午场 | N83: 10502010355 | O83: 79.33 | P83: 52 | Q83: 32 | R83: 39.67 | S83: 71.67 | T83: =IF(S83=0,"",SUMPRODUCT(($AB$3:$AB$196=AA83)*($T$3:$T$196>S83))+1) -> 59
A84: =IF(B84<>"",SUBTOTAL(3,$B$3:B84)+0,"") -> 82 | B84: 严家盼 | C84: 榕江县 | D84: 小学 | E84: 语文 | F84: 020 | G84: 03 | H84: 05020102003 | I84: 64 | J84: 55 | K84: 第03-2候考室 | L84: 第03考场 | M84: 上午场 | N84: 10502010356 | O84: 79.33 | P84: 52 | Q84: 32 | R84: 39.67 | S84: 71.67 | T84: =IF(S84=0,"",SUMPRODUCT(($AB$3:$AB$196=AA84)*($T$3:$T$196>S84))+1) -> 59
A85: =IF(B85<>"",SUBTOTAL(3,$B$3:B85)+0,"") -> 83 | B85: 何琴 | C85: 榕江县 | D85: 小学 | E85: 语文 | F85: 022 | G85: 10 | H85: 05020102210 | I85: 68 | J85: 24 | K85: 第03-1候考室 | L85: 第03考场 | M85: 上午场 | N85: 10502010328 | O85: 75 | P85: 68 | Q85: 34 | R85: 37.5 | S85: 71.5 | T85: =IF(S85=0,"",SUMPRODUCT(($AB$3:$AB$196=AA85)*($T$3:$T$196>S85))+1) -> 61
A86: =IF(B86<>"",SUBTOTAL(3,$B$3:B86)+0,"") -> 84 | B86: 岑应妮 | C86: 榕江县 | D86: 小学 | E86: 语文 | F86: 021 | G86: 02 | H86: 05020102102 | I86: 63.5 | J86: 59 | K86: 第03-2候考室 | L86: 第03考场 | M86: 上午场 | N86: 10502010362 | O86: 79 | P86: 57 | Q86: 31.75 | R86: 39.5 | S86: 71.25 | T86: =IF(S86=0,"",SUMPRODUCT(($AB$3:$AB$196=AA86)*($T$3:$T$196>S86))+1) -> 62
A87: =IF(B87<>"",SUBTOTAL(3,$B$3:B87)+0,"") -> 85 | B87: 彭婷 | C87: 榕江县 | D87: 小学 | E87: 语文 | F87: 022 | G87: 11 | H87: 05020102211 | I87: 63.5 | J87: 59 | K87: 第03-2候考室 | L87: 第03考场 | M87: 上午场 | N87: 10502010364 | O87: 78.67 | P87: 59 | Q87: 31.75 | R87: 39.34 | S87: 71.09 | T87: =IF(S87=0,"",SUMPRODUCT(($AB$3:$AB$196=AA87)*($T$3:$T$196>S87))+1) -> 63
A88: =IF(B88<>"",SUBTOTAL(3,$B$3:B88)+0,"") -> 86 | B88: 潘东丽 | C88: 榕江县 | D88: 小学 | E88: 语文 | F88: 022 | G88: 07 | H88: 05020102207 | I88: 62.5 | J88: 69 | K88: 第03-2候考室 | L88: 第03考场 | M88: 上午场 | N88: 10502010369 | O88: 79.67 | P88: 48 | Q88: 31.25 | R88: 39.84 | S88: 71.09 | T88: =IF(S88=0,"",SUMPRODUCT(($AB$3:$AB$196=AA88)*($T$3:$T$196>S88))+1) -> 63
A89: =IF(B89<>"",SUBTOTAL(3,$B$3:B89)+0,"") -> 87 | B89: 李茂菁 | C89: 榕江县 | D89: 小学 | E89: 语文 | F89: 024 | G89: 12 | H89: 05020102412 | I89: 63 | J89: 66 | K89: 第03-2候考室 | L89: 第03考场 | M89: 上午场 | N89: 10502010367 | O89: 78 | P89: 62 | Q89: 31.5 | R89: 39 | S89: 70.5 | T89: =IF(S89=0,"",SUMPRODUCT(($AB$3:$AB$196=AA89)*($T$3:$T$196>S89))+1) -> 65
A90: =IF(B90<>"",SUBTOTAL(3,$B$3:B90)+0,"") -> 88 | B90: 杨琼 | C90: 榕江县 | D90: 小学 | E90: 语文 | F90: 024 | G90: 13 | H90: 05020102413 | I90: 64.5 | J90: 50 | K90: 第03-2候考室 | L90: 第03考场 | M90: 上午场 | N90: 10502010353 | O90: 76.33 | P90: 65 | Q90: 32.25 | R90: 38.17 | S90: 70.42 | T90: =IF(S90=0,"",SUMPRODUCT(($AB$3:$AB$196=AA90)*($T$3:$T$196>S90))+1) -> 66
A91: =IF(B91<>"",SUBTOTAL(3,$B$3:B91)+0,"") -> 89 | B91: 李红兰 | C91: 榕江县 | D91: 小学 | E91: 语文 | F91: 019 | G91: 26 | H91: 05020101926 | I91: 62 | J91: 72 | K91: 第03-2候考室 | L91: 第03考场 | M91: 上午场 | N91: 10502010372 | O91: 78.33 | P91: 61 | Q91: 31 | R91: 39.17 | S91: 70.17 | T91: =IF(S91=0,"",SUMPRODUCT(($AB$3:$AB$196=AA91)*($T$3:$T$196>S91))+1) -> 67
A92: =IF(B92<>"",SUBTOTAL(3,$B$3:B92)+0,"") -> 90 | B92: 廖青梅 | C92: 榕江县 | D92: 小学 | E92: 语文 | F92: 024 | G92: 19 | H92: 05020102419 | I92: 63 | J92: 66 | K92: 第03-2候考室 | L92: 第03考场 | M92: 上午场 | N92: 10502010368 | O92: 76 | P92: 66 | Q92: 31.5 | R92: 38 | S92: 69.5 | T92: =IF(S92=0,"",SUMPRODUCT(($AB$3:$AB$196=AA92)*($T$3:$T$196>S92))+1) -> 68
A93: =IF(B93<>"",SUBTOTAL(3,$B$3:B93)+0,"") -> 91 | B93: 杨秋菊 | C93: 榕江县 | D93: 小学 | E93: 语文 | F93: 022 | G93: 02 | H93: 05020102202 | I93: 65 | J93: 46 | K93: 第03-2候考室 | L93: 第03考场 | M93: 上午场 | N93: 10502010348 | O93: 0 | Q93: 32.5 | R93: 0 | S93: 32.5 | T93: =IF(S93=0,"",SUMPRODUCT(($AB$3:$AB$196=AA93)*($T$3:$T$196>S93))+1) -> 69
A94: =IF(B94<>"",SUBTOTAL(3,$B$3:B94)+0,"") -> 92 | B94: 张传秀 | C94: 榕江县 | D94: 小学 | E94: 语文 | F94: 023 | G94: 11 | H94: 05020102311 | I94: 64.5 | J94: 50 | K94: 第03-2候考室 | L94: 第03考场 | M94: 上午场 | N94: 10502010352 | O94: 0 | Q94: 32.25 | R94: 0 | S94: 32.25 | T94: =IF(S94=0,"",SUMPRODUCT(($AB$3:$AB$196=AA94)*($T$3:$T$196>S94))+1) -> 70
A95: =IF(B95<>"",SUBTOTAL(3,$B$3:B95)+0,"") -> 93 | B95: 徐国云 | C95: 榕江县 | D95: 小学 | E95: 语文 | F95: 023 | G95: 05 | H95: 05020102305 | I95: 64 | J95: 55 | K95: 第03-2候考室 | L95: 第03考场 | M95: 上午场 | N95: 10502010358 | O95: 0 | Q95: 32 | R95: 0 | S95: 32 | T95: =IF(S95=0,"",SUMPRODUCT(($AB$3:$AB$196=AA95)*($T$3:$T$196>S95))+1) -> 71
A96: =IF(B96<>"",SUBTOTAL(3,$B$3:B96)+0,"") -> 94 | B96: 吴思叶 | C96: 榕江县 | D96: 小学 | E96: 语文 | F96: 025 | G96: 04 | H96: 05020102504 | I96: 62.5 | J96: 69 | K96: 第03-2候考室 | L96: 第03考场 | M96: 上午场 | N96: 10502010371 | O96: 0 | Q96: 31.25 | R96: 0 | S96: 31.25 | T96: =IF(S96=0,"",SUMPRODUCT(($AB$3:$AB$196=AA96)*($T$3:$T$196>S96))+1) -> 72
A97: =IF(B97<>"",SUBTOTAL(3,$B$3:B97)+0,"") -> 95 | B97: 龙虑伊 | C97: 榕江县 | D97: 小学 | E97: 语文 | F97: 023 | G97: 19 | H97: 05020102319 | I97: 62 | J97: 72 | K97: 第03-2候考室 | L97: 第03考场 | M97: 上午场 | N97: 10502010373 | O97: 0 | Q97: 31 | R97: 0 | S97: 31 | T97: =IF(S97=0,"",SUMPRODUCT(($AB$3:$AB$196=AA97)*($T$3:$T$196>S97))+1) -> 73
A98: =IF(B98<>"",SUBTOTAL(3,$B$3:B98)+0,"") -> 96 | B98: 杨贵蓝 | C98: 榕江县 | D98: 小学 | E98: 数学 | F98: 004 | G98: 15 | H98: 05020200415 | I98: 79.5 | J98: 1 | K98: 第13候考室 | L98: 第13考场 | M98: 上午场 | N98: 10502021301 | O98: 91 | P98: 12 | Q98: 39.75 | R98: 45.5 | S98: 85.25 | T98: =IF(S98=0,"",SUMPRODUCT(($AB$3:$AB$196=AA98)*($T$3:$T$196>S98))+1) -> 1 | U98: 入围体检
A99: =IF(B99<>"",SUBTOTAL(3,$B$3:B99)+0,"") -> 97 | B99: 潘家俊 | C99: 榕江县 | D99: 小学 | E99: 数学 | F99: 002 | G99: 01 | H99: 05020200201 | I99: 76 | J99: 3 | K99: 第13候考室 | L99: 第13考场 | M99: 上午场 | N99: 10502021303 | O99: 94 | P99: 4 | Q99: 38 | R99: 47 | S99: 85 | T99: =IF(S99=0,"",SUMPRODUCT(($AB$3:$AB$196=AA99)*($T$3:$T$196>S99))+1) -> 2 | U99: 入围体检
A100: =IF(B100<>"",SUBTOTAL(3,$B$3:B100)+0,"") -> 98 | B100: 刘桥红 | C100: 榕江县 | D100: 小学 | E100: 数学 | F100: 002 | G100: 07 | H100: 05020200207 | I100: 73.5 | J100: 5 | K100: 第13候考室 | L100: 第13考场 | M100: 上午场 | N100: 10502021306 | O100: 95 | P100: 1 | Q100: 36.75 | R100: 47.5 | S100: 84.25 | T100: =IF(S100=0,"",SUMPRODUCT(($AB$3:$AB$196=AA100)*($T$3:$T$196>S100))+1) -> 3 | U100: 入围体检
A101: =IF(B101<>"",SUBTOTAL(3,$B$3:B101)+0,"") -> 99 | B101: 杨银艳 | C101: 榕江县 | D101: 小学 | E101: 数学 | F101: 002 | G101: 16 | H101: 05020200216 | I101: 78 | J101: 2 | K101: 第13候考室 | L101: 第13考场 | M101: 上午场 | N101: 10502021302 | O101: 88 | P101: 29 | Q101: 39 | R101: 44 | S101: 83 | T101: =IF(S101=0,"",SUMPRODUCT(($AB$3:$AB$196=AA101)*($T$3:$T$196>S101))+1) -> 4 | U101: 入围体检
A102: =IF(B102<>"",SUBTOTAL(3,$B$3:B102)+0,"") -> 100 | B102: 罗化宣 | C102: 榕江县 | D102: 小学 | E102: 数学 | F102: 002 | G102: 05 | H102: 05020200205 | I102: 72.5 | J102: 7 | K102: 第13候考室 | L102: 第13考场 | M102: 上午场 | N102: 10502021307 | O102: 92 | P102: 7 | Q102: 36.25 | R102: 46 | S102: 82.25 | T102: =IF(S102=0,"",SUMPRODUCT(($AB$3:$AB$196=AA102)*($T$3:$T$196>S102))+1) -> 5 | U102: 入围体检
A103: =IF(B103<>"",SUBTOTAL(3,$B$3:B103)+0,"") -> 101 | B103: 李佐梅 | C103: 榕江县 | D103: 小学 | E103: 数学 | F103: 002 | G103: 09 | H103: 05020200209 | I103: 74 | J103: 4 | K103: 第13候考室 | L103: 第13考场 | M103: 上午场 | N103: 10502021304 | O103: 90.33 | P103: 17 | Q103: 37 | R103: 45.17 | S103: 82.17 | T103: =IF(S103=0,"",SUMPRODUCT(($AB$3:$AB$196=AA103)*($T$3:$T$196>S103))+1) -> 6 | U103: 入围体检
A104: =IF(B104<>"",SUBTOTAL(3,$B$3:B104)+0,"") -> 102 | B104: 杨丽 | C104: 榕江县 | D104: 小学 | E104: 数学 | F104: 002 | G104: 06 | H104: 05020200206 | I104: 73.5 | J104: 5 | K104: 第13候考室 | L104: 第13考场 | M104: 上午场 | N104: 10502021305 | O104: 89.67 | P104: 19 | Q104: 36.75 | R104: 44.84 | S104: 81.59 | T104: =IF(S104=0,"",SUMPRODUCT(($AB$3:$AB$196=AA104)*($T$3:$T$196>S104))+1) -> 7 | U104: 入围体检
A105: =IF(B105<>"",SUBTOTAL(3,$B$3:B105)+0,"") -> 103 | B105: 施坪 | C105: 榕江县 | D105: 小学 | E105: 数学 | F105: 003 | G105: 16 | H105: 05020200316 | I105: 72.5 | J105: 7 | K105: 第13候考室 | L105: 第13考场 | M105: 上午场 | N105: 10502021308 | O105: 90.67 | P105: 13 | Q105: 36.25 | R105: 45.34 | S105: 81.59 | T105: =IF(S105=0,"",SUMPRODUCT(($AB$3:$AB$196=AA105)*($T$3:$T$196>S105))+1) -> 7 | U105: 入围体检
A106: =IF(B106<>"",SUBTOTAL(3,$B$3:B106)+0,"") -> 104 | B106: 龙银桃 | C106: 榕江县 | D106: 小学 | E106: 数学 | F106: 004 | G106: 12 | H106: 05020200412 | I106: 68.5 | J106: 11 | K106: 第13候考室 | L106: 第13考场 | M106: 上午场 | N106: 10502021311 | O106: 92.33 | P106: 6 | Q106: 34.25 | R106: 46.17 | S106: 80.42 | T106: =IF(S106=0,"",SUMPRODUCT(($AB$3:$AB$196=AA106)*($T$3:$T$196>S106))+1) -> 9 | U106: 入围体检
A107: =IF(B107<>"",SUBTOTAL(3,$B$3:B107)+0,"") -> 105 | B107: 王婷婷 | C107: 榕江县 | D107: 小学 | E107: 数学 | F107: 003 | G107: 08 | H107: 05020200308 | I107: 72 | J107: 9 | K107: 第13候考室 | L107: 第13考场 | M107: 上午场 | N107: 10502021309 | O107: 88.33 | P107: 26 | Q107: 36 | R107: 44.17 | S107: 80.17 | T107: =IF(S107=0,"",SUMPRODUCT(($AB$3:$AB$196=AA107)*($T$3:$T$196>S107))+1) -> 10 | U107: 入围体检
A108: =IF(B108<>"",SUBTOTAL(3,$B$3:B108)+0,"") -> 106 | B108: 吴兴威 | C108: 榕江县 | D108: 小学 | E108: 数学 | F108: 003 | G108: 15 | H108: 05020200315 | I108: 72 | J108: 9 | K108: 第13候考室 | L108: 第13考场 | M108: 上午场 | N108: 10502021310 | O108: 86.67 | P108: 32 | Q108: 36 | R108: 43.34 | S108: 79.34 | T108: =IF(S108=0,"",SUMPRODUCT(($AB$3:$AB$196=AA108)*($T$3:$T$196>S108))+1) -> 11 | U108: 入围体检
A109: =IF(B109<>"",SUBTOTAL(3,$B$3:B109)+0,"") -> 107 | B109: 张炼琳 | C109: 榕江县 | D109: 小学 | E109: 数学 | F109: 003 | G109: 25 | H109: 05020200325 | I109: 62.5 | J109: 12 | K109: 第13候考室 | L109: 第13考场 | M109: 上午场 | N109: 10502021312 | O109: 95 | P109: 1 | Q109: 31.25 | R109: 47.5 | S109: 78.75 | T109: =IF(S109=0,"",SUMPRODUCT(($AB$3:$AB$196=AA109)*($T$3:$T$196>S109))+1) -> 12 | U109: 入围体检
A110: =IF(B110<>"",SUBTOTAL(3,$B$3:B110)+0,"") -> 108 | B110: 简荣婷 | C110: 榕江县 | D110: 小学 | E110: 数学 | F110: 003 | G110: 29 | H110: 05020200329 | I110: 58 | J110: 17 | K110: 第13候考室 | L110: 第13考场 | M110: 上午场 | N110: 10502021317 | O110: 94.33 | P110: 3 | Q110: 29 | R110: 47.17 | S110: 76.17 | T110: =IF(S110=0,"",SUMPRODUCT(($AB$3:$AB$196=AA110)*($T$3:$T$196>S110))+1) -> 13 | U110: 入围体检
A111: =IF(B111<>"",SUBTOTAL(3,$B$3:B111)+0,"") -> 109 | B111: 杨绍排 | C111: 榕江县 | D111: 小学 | E111: 数学 | F111: 002 | G111: 20 | H111: 05020200220 | I111: 62 | J111: 13 | K111: 第13候考室 | L111: 第13考场 | M111: 上午场 | N111: 10502021313 | O111: 89 | P111: 23 | Q111: 31 | R111: 44.5 | S111: 75.5 | T111: =IF(S111=0,"",SUMPRODUCT(($AB$3:$AB$196=AA111)*($T$3:$T$196>S111))+1) -> 14 | U111: 入围体检
A112: =IF(B112<>"",SUBTOTAL(3,$B$3:B112)+0,"") -> 110 | B112: 彭佳蝶 | C112: 榕江县 | D112: 小学 | E112: 数学 | F112: 004 | G112: 09 | H112: 05020200409 | I112: 61 | J112: 14 | K112: 第13候考室 | L112: 第13考场 | M112: 上午场 | N112: 10502021314 | O112: 88.33 | P112: 26 | Q112: 30.5 | R112: 44.17 | S112: 74.67 | T112: =IF(S112=0,"",SUMPRODUCT(($AB$3:$AB$196=AA112)*($T$3:$T$196>S112))+1) -> 15 | U112: 入围体检
A113: =IF(B113<>"",SUBTOTAL(3,$B$3:B113)+0,"") -> 111 | B113: 马爱林 | C113: 榕江县 | D113: 小学 | E113: 数学 | F113: 003 | G113: 09 | H113: 05020200309 | I113: 60 | J113: 15 | K113: 第13候考室 | L113: 第13考场 | M113: 上午场 | N113: 10502021315 | O113: 87 | P113: 31 | Q113: 30 | R113: 43.5 | S113: 73.5 | T113: =IF(S113=0,"",SUMPRODUCT(($AB$3:$AB$196=AA113)*($T$3:$T$196>S113))+1) -> 16 | U113: 入围体检
A114: =IF(B114<>"",SUBTOTAL(3,$B$3:B114)+0,"") -> 112 | B114: 陆金芝 | C114: 榕江县 | D114: 小学 | E114: 数学 | F114: 002 | G114: 14 | H114: 05020200214 | I114: 58.5 | J114: 16 | K114: 第13候考室 | L114: 第13考场 | M114: 上午场 | N114: 10502021316 | O114: 86.33 | P114: 34 | Q114: 29.25 | R114: 43.17 | S114: 72.42 | T114: =IF(S114=0,"",SUMPRODUCT(($AB$3:$AB$196=AA114)*($T$3:$T$196>S114))+1) -> 17 | U114: 入围体检
A115: =IF(B115<>"",SUBTOTAL(3,$B$3:B115)+0,"") -> 113 | B115: 杨成功 | C115: 榕江县 | D115: 小学 | E115: 数学 | F115: 002 | G115: 03 | H115: 05020200203 | I115: 56 | J115: 19 | K115: 第13候考室 | L115: 第13考场 | M115: 上午场 | N115: 10502021319 | O115: 88.33 | P115: 26 | Q115: 28 | R115: 44.17 | S115: 72.17 | T115: =IF(S115=0,"",SUMPRODUCT(($AB$3:$AB$196=AA115)*($T$3:$T$196>S115))+1) -> 18 | U115: 入围体检
A116: =IF(B116<>"",SUBTOTAL(3,$B$3:B116)+0,"") -> 114 | B116: 吴林海 | C116: 榕江县 | D116: 小学 | E116: 数学 | F116: 002 | G116: 21 | H116: 05020200221 | I116: 56.5 | J116: 18 | K116: 第13候考室 | L116: 第13考场 | M116: 上午场 | N116: 10502021318 | O116: 87.33 | P116: 30 | Q116: 28.25 | R116: 43.67 | S116: 71.92 | T116: =IF(S116=0,"",SUMPRODUCT(($AB$3:$AB$196=AA116)*($T$3:$T$196>S116))+1) -> 19 | U116: 入围体检
A117: =IF(B117<>"",SUBTOTAL(3,$B$3:B117)+0,"") -> 115 | B117: 吴丽花 | C117: 榕江县 | D117: 小学 | E117: 数学 | F117: 003 | G117: 24 | H117: 05020200324 | I117: 50.5 | J117: 22 | K117: 第13候考室 | L117: 第13考场 | M117: 上午场 | N117: 10502021323 | O117: 91.33 | P117: 10 | Q117: 25.25 | R117: 45.67 | S117: 70.92 | T117: =IF(S117=0,"",SUMPRODUCT(($AB$3:$AB$196=AA117)*($T$3:$T$196>S117))+1) -> 20 | U117: 入围体检
A118: =IF(B118<>"",SUBTOTAL(3,$B$3:B118)+0,"") -> 116 | B118: 王大芬 | C118: 榕江县 | D118: 小学 | E118: 数学 | F118: 003 | G118: 06 | H118: 05020200306 | I118: 48.5 | J118: 25 | K118: 第13候考室 | L118: 第13考场 | M118: 上午场 | N118: 10502021325 | O118: 93 | P118: 5 | Q118: 24.25 | R118: 46.5 | S118: 70.75 | T118: =IF(S118=0,"",SUMPRODUCT(($AB$3:$AB$196=AA118)*($T$3:$T$196>S118))+1) -> 21
A119: =IF(B119<>"",SUBTOTAL(3,$B$3:B119)+0,"") -> 117 | B119: 王兴金 | C119: 榕江县 | D119: 小学 | E119: 数学 | F119: 003 | G119: 02 | H119: 05020200302 | I119: 54.5 | J119: 20 | K119: 第13候考室 | L119: 第13考场 | M119: 上午场 | N119: 10502021320 | O119: 83.67 | P119: 38 | Q119: 27.25 | R119: 41.84 | S119: 69.09 | T119: =IF(S119=0,"",SUMPRODUCT(($AB$3:$AB$196=AA119)*($T$3:$T$196>S119))+1) -> 22
A120: =IF(B120<>"",SUBTOTAL(3,$B$3:B120)+0,"") -> 118 | B120: 石秀红 | C120: 榕江县 | D120: 小学 | E120: 数学 | F120: 004 | G120: 08 | H120: 05020200408 | I120: 47 | J120: 27 | K120: 第13候考室 | L120: 第13考场 | M120: 上午场 | N120: 10502021327 | O120: 89.67 | P120: 19 | Q120: 23.5 | R120: 44.84 | S120: 68.34 | T120: =IF(S120=0,"",SUMPRODUCT(($AB$3:$AB$196=AA120)*($T$3:$T$196>S120))+1) -> 23
A121: =IF(B121<>"",SUBTOTAL(3,$B$3:B121)+0,"") -> 119 | B121: 杨永兰 | C121: 榕江县 | D121: 小学 | E121: 数学 | F121: 002 | G121: 19 | H121: 05020200219 | I121: 43.5 | J121: 30 | K121: 第13候考室 | L121: 第13考场 | M121: 上午场 | N121: 10502021330 | O121: 91.67 | P121: 9 | Q121: 21.75 | R121: 45.84 | S121: 67.59 | T121: =IF(S121=0,"",SUMPRODUCT(($AB$3:$AB$196=AA121)*($T$3:$T$196>S121))+1) -> 24
A122: =IF(B122<>"",SUBTOTAL(3,$B$3:B122)+0,"") -> 120 | B122: 杨再云 | C122: 榕江县 | D122: 小学 | E122: 数学 | F122: 002 | G122: 04 | H122: 05020200204 | I122: 52 | J122: 21 | K122: 第13候考室 | L122: 第13考场 | M122: 上午场 | N122: 10502021321 | O122: 83 | P122: 39 | Q122: 26 | R122: 41.5 | S122: 67.5 | T122: =IF(S122=0,"",SUMPRODUCT(($AB$3:$AB$196=AA122)*($T$3:$T$196>S122))+1) -> 25
A123: =IF(B123<>"",SUBTOTAL(3,$B$3:B123)+0,"") -> 121 | B123: 陈诗 | C123: 榕江县 | D123: 小学 | E123: 数学 | F123: 003 | G123: 01 | H123: 05020200301 | I123: 43 | J123: 32 | K123: 第13候考室 | L123: 第13考场 | M123: 上午场 | N123: 10502021332 | O123: 92 | P123: 7 | Q123: 21.5 | R123: 46 | S123: 67.5 | T123: =IF(S123=0,"",SUMPRODUCT(($AB$3:$AB$196=AA123)*($T$3:$T$196>S123))+1) -> 25
A124: =IF(B124<>"",SUBTOTAL(3,$B$3:B124)+0,"") -> 122 | B124: 陈娟美 | C124: 榕江县 | D124: 小学 | E124: 数学 | F124: 004 | G124: 03 | H124: 05020200403 | I124: 43.5 | J124: 30 | K124: 第13候考室 | L124: 第13考场 | M124: 上午场 | N124: 10502021331 | O124: 90.33 | P124: 17 | Q124: 21.75 | R124: 45.17 | S124: 66.92 | T124: =IF(S124=0,"",SUMPRODUCT(($AB$3:$AB$196=AA124)*($T$3:$T$196>S124))+1) -> 27
A125: =IF(B125<>"",SUBTOTAL(3,$B$3:B125)+0,"") -> 123 | B125: 杨兰艳 | C125: 榕江县 | D125: 小学 | E125: 数学 | F125: 002 | G125: 28 | H125: 05020200228 | I125: 50.5 | J125: 22 | K125: 第13候考室 | L125: 第13考场 | M125: 上午场 | N125: 10502021322 | O125: 82.33 | P125: 40 | Q125: 25.25 | R125: 41.17 | S125: 66.42 | T125: =IF(S125=0,"",SUMPRODUCT(($AB$3:$AB$196=AA125)*($T$3:$T$196>S125))+1) -> 28
A126: =IF(B126<>"",SUBTOTAL(3,$B$3:B126)+0,"") -> 124 | B126: 李开燕 | C126: 榕江县 | D126: 小学 | E126: 数学 | F126: 002 | G126: 22 | H126: 05020200222 | I126: 40.5 | J126: 34 | K126: 第13候考室 | L126: 第13考场 | M126: 上午场 | N126: 10502021334 | O126: 90.67 | P126: 13 | Q126: 20.25 | R126: 45.34 | S126: 65.59 | T126: =IF(S126=0,"",SUMPRODUCT(($AB$3:$AB$196=AA126)*($T$3:$T$196>S126))+1) -> 29
A127: =IF(B127<>"",SUBTOTAL(3,$B$3:B127)+0,"") -> 125 | B127: 王文东 | C127: 榕江县 | D127: 小学 | E127: 数学 | F127: 004 | G127: 10 | H127: 05020200410 | I127: 44 | J127: 29 | K127: 第13候考室 | L127: 第13考场 | M127: 上午场 | N127: 10502021329 | O127: 85.33 | P127: 36 | Q127: 22 | R127: 42.67 | S127: 64.67 | T127: =IF(S127=0,"",SUMPRODUCT(($AB$3:$AB$196=AA127)*($T$3:$T$196>S127))+1) -> 30
A128: =IF(B128<>"",SUBTOTAL(3,$B$3:B128)+0,"") -> 126 | B128: 杨秀蓝 | C128: 榕江县 | D128: 小学 | E128: 数学 | F128: 004 | G128: 16 | H128: 05020200416 | I128: 40.5 | J128: 34 | K128: 第13候考室 | L128: 第13考场 | M128: 上午场 | N128: 10502021335 | O128: 88.67 | P128: 25 | Q128: 20.25 | R128: 44.34 | S128: 64.59 | T128: =IF(S128=0,"",SUMPRODUCT(($AB$3:$AB$196=AA128)*($T$3:$T$196>S128))+1) -> 31
A129: =IF(B129<>"",SUBTOTAL(3,$B$3:B129)+0,"") -> 127 | B129: 熊欢欢 | C129: 榕江县 | D129: 小学 | E129: 数学 | F129: 003 | G129: 17 | H129: 05020200317 | I129: 36 | J129: 42 | K129: 第13候考室 | L129: 第13考场 | M129: 上午场 | N129: 10502021342 | O129: 91.33 | P129: 10 | Q129: 18 | R129: 45.67 | S129: 63.67 | T129: =IF(S129=0,"",SUMPRODUCT(($AB$3:$AB$196=AA129)*($T$3:$T$196>S129))+1) -> 32
A130: =IF(B130<>"",SUBTOTAL(3,$B$3:B130)+0,"") -> 128 | B130: 宋德玉 | C130: 榕江县 | D130: 小学 | E130: 数学 | F130: 003 | G130: 27 | H130: 05020200327 | I130: 36 | J130: 42 | K130: 第13候考室 | L130: 第13考场 | M130: 上午场 | N130: 10502021343 | O130: 90.67 | P130: 13 | Q130: 18 | R130: 45.34 | S130: 63.34 | T130: =IF(S130=0,"",SUMPRODUCT(($AB$3:$AB$196=AA130)*($T$3:$T$196>S130))+1) -> 33
A131: =IF(B131<>"",SUBTOTAL(3,$B$3:B131)+0,"") -> 129 | B131: 杨昌珠 | C131: 榕江县 | D131: 小学 | E131: 数学 | F131: 004 | G131: 13 | H131: 05020200413 | I131: 37.5 | J131: 38 | K131: 第13候考室 | L131: 第13考场 | M131: 上午场 | N131: 10502021339 | O131: 89 | P131: 23 | Q131: =ROUND(I131*0.5,2) -> 18.75 | R131: =ROUND(O131*0.5,2) -> 44.5 | S131: =Q131+R131 -> 63.25 | T131: =IF(S131=0,"",SUMPRODUCT(($AB$3:$AB$196=AA131)*($T$3:$T$196>S131))+1) -> 34
A132: =IF(B132<>"",SUBTOTAL(3,$B$3:B132)+0,"") -> 130 | B132: 杨秋凤 | C132: 榕江县 | D132: 小学 | E132: 数学 | F132: 002 | G132: 29 | H132: 05020200229 | I132: 36.5 | J132: 40 | K132: 第13候考室 | L132: 第13考场 | M132: 上午场 | N132: 10502021340 | O132: 89.67 | P132: 19 | Q132: 18.25 | R132: 44.84 | S132: 63.09 | T132: =IF(S132=0,"",SUMPRODUCT(($AB$3:$AB$196=AA132)*($T$3:$T$196>S132))+1) -> 35
A133: =IF(B133<>"",SUBTOTAL(3,$B$3:B133)+0,"") -> 131 | B133: 赵胜毅 | C133: 榕江县 | D133: 小学 | E133: 数学 | F133: 003 | G133: 20 | H133: 05020200320 | I133: 37.5 | J133: 38 | K133: 第13候考室 | L133: 第13考场 | M133: 上午场 | N133: 10502021338 | O133: 85.33 | P133: 36 | Q133: 18.75 | R133: 42.67 | S133: 61.42 | T133: =IF(S133=0,"",SUMPRODUCT(($AB$3:$AB$196=AA133)*($T$3:$T$196>S133))+1) -> 36
A134: =IF(B134<>"",SUBTOTAL(3,$B$3:B134)+0,"") -> 132 | B134: 杨秀雪 | C134: 榕江县 | D134: 小学 | E134: 数学 | F134: 003 | G134: 26 | H134: 05020200326 | I134: 32.5 | J134: 45 | K134: 第13候考室 | L134: 第13考场 | M134: 上午场 | N134: 10502021345 | O134: 89.67 | P134: 19 | Q134: 16.25 | R134: 44.84 | S134: 61.09 | T134: =IF(S134=0,"",SUMPRODUCT(($AB$3:$AB$196=AA134)*($T$3:$T$196>S134))+1) -> 37
A135: =IF(B135<>"",SUBTOTAL(3,$B$3:B135)+0,"") -> 133 | B135: 王银先 | C135: 榕江县 | D135: 小学 | E135: 数学 | F135: 004 | G135: 05 | H135: 05020200405 | I135: 39 | J135: 37 | K135: 第13候考室 | L135: 第13考场 | M135: 上午场 | N135: 10502021337 | O135: 82.33 | P135: 40 | Q135: 19.5 | R135: 41.17 | S135: 60.67 | T135: =IF(S135=0,"",SUMPRODUCT(($AB$3:$AB$196=AA135)*($T$3:$T$196>S135))+1) -> 38
A136: =IF(B136<>"",SUBTOTAL(3,$B$3:B136)+0,"") -> 134 | B136: 蒙誉斐 | C136: 榕江县 | D136: 小学 | E136: 数学 | F136: 003 | G136: 28 | H136: 05020200328 | I136: 35.5 | J136: 44 | K136: 第13候考室 | L136: 第13考场 | M136: 上午场 | N136: 10502021344 | O136: 85.67 | P136: 35 | Q136: 17.75 | R136: 42.84 | S136: 60.59 | T136: =IF(S136=0,"",SUMPRODUCT(($AB$3:$AB$196=AA136)*($T$3:$T$196>S136))+1) -> 39
A137: =IF(B137<>"",SUBTOTAL(3,$B$3:B137)+0,"") -> 135 | B137: 周丽娟 | C137: 榕江县 | D137: 小学 | E137: 数学 | F137: 003 | G137: 11 | H137: 05020200311 | I137: 40 | J137: 36 | K137: 第13候考室 | L137: 第13考场 | M137: 上午场 | N137: 10502021336 | O137: 81 | P137: 42 | Q137: 20 | R137: 40.5 | S137: 60.5 | T137: =IF(S137=0,"",SUMPRODUCT(($AB$3:$AB$196=AA137)*($T$3:$T$196>S137))+1) -> 40
A138: =IF(B138<>"",SUBTOTAL(3,$B$3:B138)+0,"") -> 136 | B138: 白从微 | C138: 榕江县 | D138: 小学 | E138: 数学 | F138: 002 | G138: 11 | H138: 05020200211 | I138: 41 | J138: 33 | K138: 第13候考室 | L138: 第13考场 | M138: 上午场 | N138: 10502021333 | O138: 79.67 | P138: 43 | Q138: 20.5 | R138: 39.84 | S138: 60.34 | T138: =IF(S138=0,"",SUMPRODUCT(($AB$3:$AB$196=AA138)*($T$3:$T$196>S138))+1) -> 41
A139: =IF(B139<>"",SUBTOTAL(3,$B$3:B139)+0,"") -> 137 | B139: 王珍 | C139: 榕江县 | D139: 小学 | E139: 数学 | F139: 002 | G139: 02 | H139: 05020200202 | I139: 29.5 | J139: 49 | K139: 第13候考室 | L139: 第13考场 | M139: 上午场 | N139: 10502021349 | O139: 90.67 | P139: 13 | Q139: 14.75 | R139: 45.34 | S139: 60.09 | T139: =IF(S139=0,"",SUMPRODUCT(($AB$3:$AB$196=AA139)*($T$3:$T$196>S139))+1) -> 42
A140: =IF(B140<>"",SUBTOTAL(3,$B$3:B140)+0,"") -> 138 | B140: 伍艳 | C140: 榕江县 | D140: 小学 | E140: 数学 | F140: 002 | G140: 08 | H140: 05020200208 | I140: 32 | J140: 46 | K140: 第13候考室 | L140: 第13考场 | M140: 上午场 | N140: 10502021346 | O140: 86.67 | P140: 32 | Q140: 16 | R140: 43.34 | S140: 59.34 | T140: =IF(S140=0,"",SUMPRODUCT(($AB$3:$AB$196=AA140)*($T$3:$T$196>S140))+1) -> 43
A141: =IF(B141<>"",SUBTOTAL(3,$B$3:B141)+0,"") -> 139 | B141: 舒超 | C141: 榕江县 | D141: 小学 | E141: 数学 | F141: 002 | G141: 15 | H141: 05020200215 | I141: 49.5 | J141: 24 | K141: 第13候考室 | L141: 第13考场 | M141: 上午场 | N141: 10502021324 | O141: 0 | Q141: 24.75 | R141: 0 | S141: 24.75 | T141: =IF(S141=0,"",SUMPRODUCT(($AB$3:$AB$196=AA141)*($T$3:$T$196>S141))+1) -> 44
A142: =IF(B142<>"",SUBTOTAL(3,$B$3:B142)+0,"") -> 140 | B142: 张小丹 | C142: 榕江县 | D142: 小学 | E142: 数学 | F142: 002 | G142: 26 | H142: 05020200226 | I142: 48 | J142: 26 | K142: 第13候考室 | L142: 第13考场 | M142: 上午场 | N142: 10502021326 | O142: 0 | Q142: 24 | R142: 0 | S142: 24 | T142: =IF(S142=0,"",SUMPRODUCT(($AB$3:$AB$196=AA142)*($T$3:$T$196>S142))+1) -> 45
A143: =IF(B143<>"",SUBTOTAL(3,$B$3:B143)+0,"") -> 141 | B143: 刘成艳 | C143: 榕江县 | D143: 小学 | E143: 数学 | F143: 002 | G143: 17 | H143: 05020200217 | I143: 46.5 | J143: 28 | K143: 第13候考室 | L143: 第13考场 | M143: 上午场 | N143: 10502021328 | O143: 0 | Q143: 23.25 | R143: 0 | S143: 23.25 | T143: =IF(S143=0,"",SUMPRODUCT(($AB$3:$AB$196=AA143)*($T$3:$T$196>S143))+1) -> 46
A144: =IF(B144<>"",SUBTOTAL(3,$B$3:B144)+0,"") -> 142 | B144: 杨菊花 | C144: 榕江县 | D144: 小学 | E144: 数学 | F144: 004 | G144: 04 | H144: 05020200404 | I144: 36.5 | J144: 40 | K144: 第13候考室 | L144: 第13考场 | M144: 上午场 | N144: 10502021341 | O144: 0 | Q144: 18.25 | R144: 0 | S144: 18.25 | T144: =IF(S144=0,"",SUMPRODUCT(($AB$3:$AB$196=AA144)*($T$3:$T$196>S144))+1) -> 47
A145: =IF(B145<>"",SUBTOTAL(3,$B$3:B145)+0,"") -> 143 | B145: 王小英 | C145: 榕江县 | D145: 小学 | E145: 数学 | F145: 002 | G145: 13 | H145: 05020200213 | I145: 32 | J145: 46 | K145: 第13候考室 | L145: 第13考场 | M145: 上午场 | N145: 10502021347 | O145: 0 | Q145: 16 | R145: 0 | S145: 16 | T145: =IF(S145=0,"",SUMPRODUCT(($AB$3:$AB$196=AA145)*($T$3:$T$196>S145))+1) -> 48
A146: =IF(B146<>"",SUBTOTAL(3,$B$3:B146)+0,"") -> 144 | B146: 韦清利 | C146: 榕江县 | D146: 小学 | E146: 数学 | F146: 004 | G146: 06 | H146: 05020200406 | I146: 32 | J146: 46 | K146: 第13候考室 | L146: 第13考场 | M146: 上午场 | N146: 10502021348 | O146: 0 | Q146: 16 | R146: 0 | S146: 16 | T146: =IF(S146=0,"",SUMPRODUCT(($AB$3:$AB$196=AA146)*($T$3:$T$196>S146))+1) -> 48
A147: =IF(B147<>"",SUBTOTAL(3,$B$3:B147)+0,"") -> 145 | B147: 孙国 | C147: 榕江县 | D147: 小学 | E147: 数学 | F147: 003 | G147: 05 | H147: 05020200305 | I147: 29.5 | J147: 49 | K147: 第13候考室 | L147: 第13考场 | M147: 上午场 | N147: 10502021350 | O147: 0 | Q147: 14.75 | R147: 0 | S147: 14.75 | T147: =IF(S147=0,"",SUMPRODUCT(($AB$3:$AB$196=AA147)*($T$3:$T$196>S147))+1) -> 50
A148: =IF(B148<>"",SUBTOTAL(3,$B$3:B148)+0,"") -> 146 | B148: 龙安燕 | C148: 榕江县 | D148: 小学 | E148: 数学 | F148: 003 | G148: 21 | H148: 05020200321 | I148: 29 | J148: 51 | K148: 第13候考室 | L148: 第13考场 | M148: 上午场 | N148: 10502021351 | O148: 0 | Q148: 14.5 | R148: 0 | S148: 14.5 | T148: =IF(S148=0,"",SUMPRODUCT(($AB$3:$AB$196=AA148)*($T$3:$T$196>S148))+1) -> 51
A149: =IF(B149<>"",SUBTOTAL(3,$B$3:B149)+0,"") -> 147 | B149: 金源烽 | C149: 榕江县 | D149: 小学 | E149: 数学 | F149: 003 | G149: 03 | H149: 05020200303 | I149: 28.5 | J149: 52 | K149: 第13候考室 | L149: 第13考场 | M149: 上午场 | N149: 10502021352 | O149: 0 | Q149: 14.25 | R149: 0 | S149: 14.25 | T149: =IF(S149=0,"",SUMPRODUCT(($AB$3:$AB$196=AA149)*($T$3:$T$196>S149))+1) -> 52
A150: =IF(B150<>"",SUBTOTAL(3,$B$3:B150)+0,"") -> 148 | B150: 李莎 | C150: 榕江县 | D150: 小学 | E150: 数学 | F150: 003 | G150: 18 | H150: 05020200318 | I150: 28.5 | J150: 52 | K150: 第13候考室 | L150: 第13考场 | M150: 上午场 | N150: 10502021353 | O150: 0 | Q150: 14.25 | R150: 0 | S150: 14.25 | T150: =IF(S150=0,"",SUMPRODUCT(($AB$3:$AB$196=AA150)*($T$3:$T$196>S150))+1) -> 52
A151: =IF(B151<>"",SUBTOTAL(3,$B$3:B151)+0,"") -> 149 | B151: 吴金梅 | C151: 榕江县 | D151: 小学 | E151: 数学 | F151: 004 | G151: 18 | H151: 05020200418 | I151: 28.5 | J151: 52 | K151: 第13候考室 | L151: 第13考场 | M151: 上午场 | N151: 10502021354 | O151: 0 | Q151: 14.25 | R151: 0 | S151: 14.25 | T151: =IF(S151=0,"",SUMPRODUCT(($AB$3:$AB$196=AA151)*($T$3:$T$196>S151))+1) -> 52
A152: =IF(B152<>"",SUBTOTAL(3,$B$3:B152)+0,"") -> 150 | B152: 何超令 | C152: 榕江县 | D152: 小学 | E152: 数学 | F152: 003 | G152: 10 | H152: 05020200310 | I152: 28 | J152: 55 | K152: 第13候考室 | L152: 第13考场 | M152: 上午场 | N152: 10502021355 | O152: 0 | Q152: 14 | R152: 0 | S152: 14 | T152: =IF(S152=0,"",SUMPRODUCT(($AB$3:$AB$196=AA152)*($T$3:$T$196>S152))+1) -> 55
A153: =IF(B153<>"",SUBTOTAL(3,$B$3:B153)+0,"") -> 151 | B153: 李成美 | C153: 榕江县 | D153: 小学 | E153: 数学 | F153: 004 | G153: 01 | H153: 05020200401 | I153: 26.5 | J153: 56 | K153: 第13候考室 | L153: 第13考场 | M153: 上午场 | N153: 10502021356 | O153: 0 | Q153: 13.25 | R153: 0 | S153: 13.25 | T153: =IF(S153=0,"",SUMPRODUCT(($AB$3:$AB$196=AA153)*($T$3:$T$196>S153))+1) -> 56
A154: =IF(B154<>"",SUBTOTAL(3,$B$3:B154)+0,"") -> 152 | B154: 龙彦余 | C154: 榕江县 | D154: 小学 | E154: 数学 | F154: 002 | G154: 12 | H154: 05020200212 | I154: 26 | J154: 57 | K154: 第13候考室 | L154: 第13考场 | M154: 上午场 | N154: 10502021357 | O154: 0 | Q154: 13 | R154: 0 | S154: 13 | T154: =IF(S154=0,"",SUMPRODUCT(($AB$3:$AB$196=AA154)*($T$3:$T$196>S154))+1) -> 57
A155: =IF(B155<>"",SUBTOTAL(3,$B$3:B155)+0,"") -> 153 | B155: 蒋青龙 | C155: 榕江县 | D155: 小学 | E155: 数学 | F155: 004 | G155: 02 | H155: 05020200402 | I155: 26 | J155: 57 | K155: 第13候考室 | L155: 第13考场 | M155: 上午场 | N155: 10502021358 | O155: 0 | Q155: 13 | R155: 0 | S155: 13 | T155: =IF(S155=0,"",SUMPRODUCT(($AB$3:$AB$196=AA155)*($T$3:$T$196>S155))+1) -> 57
A156: =IF(B156<>"",SUBTOTAL(3,$B$3:B156)+0,"") -> 154 | B156: 潘德智 | C156: 榕江县 | D156: 小学 | E156: 数学 | F156: 004 | G156: 19 | H156: 05020200419 | I156: 26 | J156: 57 | K156: 第13候考室 | L156: 第13考场 | M156: 上午场 | N156: 10502021359 | O156: 0 | Q156: 13 | R156: 0 | S156: 13 | T156: =IF(S156=0,"",SUMPRODUCT(($AB$3:$AB$196=AA156)*($T$3:$T$196>S156))+1) -> 57
A157: =IF(B157<>"",SUBTOTAL(3,$B$3:B157)+0,"") -> 155 | B157: 杨武芝 | C157: 榕江县 | D157: 小学 | E157: 数学 | F157: 003 | G157: 04 | H157: 05020200304 | I157: 25 | J157: 60 | K157: 第13候考室 | L157: 第13考场 | M157: 上午场 | N157: 10502021360 | O157: 0 | Q157: 12.5 | R157: 0 | S157: 12.5 | T157: =IF(S157=0,"",SUMPRODUCT(($AB$3:$AB$196=AA157)*($T$3:$T$196>S157))+1) -> 60
A158: =IF(B158<>"",SUBTOTAL(3,$B$3:B158)+0,"") -> 156 | B158: 杨瑜霞 | C158: 榕江县 | D158: 小学 | E158: 英语 | F158: 006 | G158: 16 | H158: 05020300616 | I158: 76 | J158: 2 | K158: 第20候考室 | L158: 第20考场 | M158: 下午场 | N158: 20502032053 | O158: 89.67 | P158: 2 | Q158: 38 | R158: 44.84 | S158: 82.84 | T158: =IF(S158=0,"",SUMPRODUCT(($AB$3:$AB$196=AA158)*($T$3:$T$196>S158))+1) -> 1 | U158: 入围体检
A159: =IF(B159<>"",SUBTOTAL(3,$B$3:B159)+0,"") -> 157 | B159: 杨宁 | C159: 榕江县 | D159: 小学 | E159: 英语 | F159: 006 | G159: 04 | H159: 05020300604 | I159: 78.5 | J159: 1 | K159: 第20候考室 | L159: 第20考场 | M159: 下午场 | N159: 20502032052 | O159: 85.33 | P159: 7 | Q159: 39.25 | R159: 42.67 | S159: 81.92 | T159: =IF(S159=0,"",SUMPRODUCT(($AB$3:$AB$196=AA159)*($T$3:$T$196>S159))+1) -> 2 | U159: 入围体检
A160: =IF(B160<>"",SUBTOTAL(3,$B$3:B160)+0,"") -> 158 | B160: 唐建建 | C160: 榕江县 | D160: 小学 | E160: 英语 | F160: 006 | G160: 03 | H160: 05020300603 | I160: 71 | J160: 5 | K160: 第20候考室 | L160: 第20考场 | M160: 下午场 | N160: 20502032056 | O160: 90.67 | P160: 1 | Q160: 35.5 | R160: 45.34 | S160: 80.84 | T160: =IF(S160=0,"",SUMPRODUCT(($AB$3:$AB$196=AA160)*($T$3:$T$196>S160))+1) -> 3 | U160: 入围体检
A161: =IF(B161<>"",SUBTOTAL(3,$B$3:B161)+0,"") -> 159 | B161: 潘维维 | C161: 榕江县 | D161: 小学 | E161: 英语 | F161: 006 | G161: 15 | H161: 05020300615 | I161: 70.5 | J161: 6 | K161: 第20候考室 | L161: 第20考场 | M161: 下午场 | N161: 20502032057 | O161: 89.67 | P161: 2 | Q161: 35.25 | R161: 44.84 | S161: 80.09 | T161: =IF(S161=0,"",SUMPRODUCT(($AB$3:$AB$196=AA161)*($T$3:$T$196>S161))+1) -> 4 | U161: 入围体检
A162: =IF(B162<>"",SUBTOTAL(3,$B$3:B162)+0,"") -> 160 | B162: 杨珍艳 | C162: 榕江县 | D162: 小学 | E162: 英语 | F162: 006 | G162: 11 | H162: 05020300611 | I162: 74 | J162: 3 | K162: 第20候考室 | L162: 第20考场 | M162: 下午场 | N162: 20502032054 | O162: 85.67 | P162: 6 | Q162: 37 | R162: 42.84 | S162: 79.84 | T162: =IF(S162=0,"",SUMPRODUCT(($AB$3:$AB$196=AA162)*($T$3:$T$196>S162))+1) -> 5
A163: =IF(B163<>"",SUBTOTAL(3,$B$3:B163)+0,"") -> 161 | B163: 宁家惠 | C163: 榕江县 | D163: 小学 | E163: 英语 | F163: 006 | G163: 12 | H163: 05020300612 | I163: 67 | J163: 8 | K163: 第20候考室 | L163: 第20考场 | M163: 下午场 | N163: 20502032059 | O163: 88.67 | P163: 4 | Q163: 33.5 | R163: 44.34 | S163: 77.84 | T163: =IF(S163=0,"",SUMPRODUCT(($AB$3:$AB$196=AA163)*($T$3:$T$196>S163))+1) -> 6
A164: =IF(B164<>"",SUBTOTAL(3,$B$3:B164)+0,"") -> 162 | B164: 姚晴 | C164: 榕江县 | D164: 小学 | E164: 英语 | F164: 006 | G164: 01 | H164: 05020300601 | I164: 72 | J164: 4 | K164: 第20候考室 | L164: 第20考场 | M164: 下午场 | N164: 20502032055 | O164: 82 | P164: 9 | Q164: 36 | R164: 41 | S164: 77 | T164: =IF(S164=0,"",SUMPRODUCT(($AB$3:$AB$196=AA164)*($T$3:$T$196>S164))+1) -> 7
A165: =IF(B165<>"",SUBTOTAL(3,$B$3:B165)+0,"") -> 163 | B165: 刘灿宇 | C165: 榕江县 | D165: 小学 | E165: 英语 | F165: 006 | G165: 18 | H165: 05020300618 | I165: 67 | J165: 8 | K165: 第20候考室 | L165: 第20考场 | M165: 下午场 | N165: 20502032060 | O165: 86.67 | P165: 5 | Q165: 33.5 | R165: 43.34 | S165: 76.84 | T165: =IF(S165=0,"",SUMPRODUCT(($AB$3:$AB$196=AA165)*($T$3:$T$196>S165))+1) -> 8
A166: =IF(B166<>"",SUBTOTAL(3,$B$3:B166)+0,"") -> 164 | B166: 杨盼妮 | C166: 榕江县 | D166: 小学 | E166: 英语 | F166: 006 | G166: 10 | H166: 05020300610 | I166: 68.5 | J166: 7 | K166: 第20候考室 | L166: 第20考场 | M166: 下午场 | N166: 20502032058 | O166: 82.67 | P166: 8 | Q166: 34.25 | R166: 41.34 | S166: 75.59 | T166: =IF(S166=0,"",SUMPRODUCT(($AB$3:$AB$196=AA166)*($T$3:$T$196>S166))+1) -> 9
A167: =IF(B167<>"",SUBTOTAL(3,$B$3:B167)+0,"") -> 165 | B167: 杨圆霞 | C167: 榕江县 | D167: 小学 | E167: 英语 | F167: 006 | G167: 02 | H167: 05020300602 | I167: 63 | J167: 11 | K167: 第20候考室 | L167: 第20考场 | M167: 下午场 | N167: 20502032062 | O167: 33.33 | P167: 10 | Q167: 31.5 | R167: 16.67 | S167: 48.17 | T167: =IF(S167=0,"",SUMPRODUCT(($AB$3:$AB$196=AA167)*($T$3:$T$196>S167))+1) -> 10
A168: =IF(B168<>"",SUBTOTAL(3,$B$3:B168)+0,"") -> 166 | B168: 李珏 | C168: 榕江县 | D168: 小学 | E168: 英语 | F168: 006 | G168: 05 | H168: 05020300605 | I168: 63.5 | J168: 10 | K168: 第20候考室 | L168: 第20考场 | M168: 下午场 | N168: 20502032061 | O168: 0 | Q168: 31.75 | R168: 0 | S168: 31.75 | T168: =IF(S168=0,"",SUMPRODUCT(($AB$3:$AB$196=AA168)*($T$3:$T$196>S168))+1) -> 11
A169: =IF(B169<>"",SUBTOTAL(3,$B$3:B169)+0,"") -> 167 | B169: 吴丽琴 | C169: 榕江县 | D169: 小学 | E169: 英语 | F169: 006 | G169: 23 | H169: 05020300623 | I169: 63 | J169: 11 | K169: 第20候考室 | L169: 第20考场 | M169: 下午场 | N169: 20502032063 | O169: 0 | Q169: 31.5 | R169: 0 | S169: 31.5 | T169: =IF(S169=0,"",SUMPRODUCT(($AB$3:$AB$196=AA169)*($T$3:$T$196>S169))+1) -> 12
A170: =IF(B170<>"",SUBTOTAL(3,$B$3:B170)+0,"") -> 168 | B170: 杨大跃 | C170: 榕江县 | D170: 小学 | E170: 政治 | F170: 025 | G170: 29 | H170: 05020902529 | I170: 62 | J170: 1 | K170: 第28候考室 | L170: 第28考场 | M170: 上午场 | N170: 10502092801 | O170: 79.33 | P170: 1 | Q170: 31 | R170: 39.67 | S170: 70.67 | T170: =IF(S170=0,"",SUMPRODUCT(($AB$3:$AB$196=AA170)*($T$3:$T$196>S170))+1) -> 1 | U170: 入围体检
A171: =IF(B171<>"",SUBTOTAL(3,$B$3:B171)+0,"") -> 169 | B171: 石珍远 | C171: 榕江县 | D171: 小学 | E171: 信息技术 | F171: 001 | G171: 03 | H171: 05020200103 | I171: 33 | J171: 1 | K171: 第38候考室 | L171: 第38考场 | M171: 上午场 | N171: 10502133813 | O171: 82.33 | P171: 1 | Q171: 16.5 | R171: 41.17 | S171: 57.67 | T171: =IF(S171=0,"",SUMPRODUCT(($AB$3:$AB$196=AA171)*($T$3:$T$196>S171))+1) -> 1 | U171: 入围体检
A172: =IF(B172<>"",SUBTOTAL(3,$B$3:B172)+0,"") -> 170 | B172: 韩梅 | C172: 榕江县 | D172: 小学 | E172: 信息技术 | F172: 001 | G172: 01 | H172: 05020200101 | I172: 28 | J172: 2 | K172: 第38候考室 | L172: 第38考场 | M172: 上午场 | N172: 10502133814 | O172: 80 | P172: 2 | Q172: 14 | R172: 40 | S172: 54 | T172: =IF(S172=0,"",SUMPRODUCT(($AB$3:$AB$196=AA172)*($T$3:$T$196>S172))+1) -> 2
A173: =IF(B173<>"",SUBTOTAL(3,$B$3:B173)+0,"") -> 171 | B173: 张吉荣 | C173: 榕江县 | D173: 小学 | E173: 信息技术 | F173: 001 | G173: 04 | H173: 05020200104 | I173: 25 | J173: 3 | K173: 第38候考室 | L173: 第38考场 | M173: 上午场 | N173: 10502133815 | O173: 79.33 | P173: 3 | Q173: 12.5 | R173: 39.67 | S173: 52.17 | T173: =IF(S173=0,"",SUMPRODUCT(($AB$3:$AB$196=AA173)*($T$3:$T$196>S173))+1) -> 3
A174: =IF(B174<>"",SUBTOTAL(3,$B$3:B174)+0,"") -> 172 | B174: 龙春玲 | C174: 榕江县 | D174: 小学 | E174: 科学 | F174: 001 | G174: 12 | H174: 05020200112 | I174: 63 | J174: 2 | K174: 第39候考室 | L174: 第39考场 | M174: 上午场 | N174: 10502143923 | O174: 88.33 | P174: 1 | Q174: 31.5 | R174: 44.17 | S174: 75.67 | T174: =IF(S174=0,"",SUMPRODUCT(($AB$3:$AB$196=AA174)*($T$3:$T$196>S174))+1) -> 1 | U174: 入围体检
A175: =IF(B175<>"",SUBTOTAL(3,$B$3:B175)+0,"") -> 173 | B175: 江开浪 | C175: 榕江县 | D175: 小学 | E175: 科学 | F175: 001 | G175: 21 | H175: 05020200121 | I175: 64 | J175: 1 | K175: 第39候考室 | L175: 第39考场 | M175: 上午场 | N175: 10502143922 | O175: 85.33 | P175: 5 | Q175: 32 | R175: 42.67 | S175: 74.67 | T175: =IF(S175=0,"",SUMPRODUCT(($AB$3:$AB$196=AA175)*($T$3:$T$196>S175))+1) -> 2 | U175: 入围体检
A176: =IF(B176<>"",SUBTOTAL(3,$B$3:B176)+0,"") -> 174 | B176: 何璇娜 | C176: 榕江县 | D176: 小学 | E176: 科学 | F176: 001 | G176: 23 | H176: 05020200123 | I176: 58.5 | J176: 3 | K176: 第39候考室 | L176: 第39考场 | M176: 上午场 | N176: 10502143924 | O176: 86.33 | P176: 3 | Q176: 29.25 | R176: 43.17 | S176: 72.42 | T176: =IF(S176=0,"",SUMPRODUCT(($AB$3:$AB$196=AA176)*($T$3:$T$196>S176))+1) -> 3 | U176: 入围体检
A177: =IF(B177<>"",SUBTOTAL(3,$B$3:B177)+0,"") -> 175 | B177: 夏绍萍 | C177: 榕江县 | D177: 小学 | E177: 科学 | F177: 001 | G177: 25 | H177: 05020200125 | I177: 55 | J177: 4 | K177: 第39候考室 | L177: 第39考场 | M177: 上午场 | N177: 10502143925 | O177: 88 | P177: 2 | Q177: 27.5 | R177: 44 | S177: 71.5 | T177: =IF(S177=0,"",SUMPRODUCT(($AB$3:$AB$196=AA177)*($T$3:$T$196>S177))+1) -> 4
A178: =IF(B178<>"",SUBTOTAL(3,$B$3:B178)+0,"") -> 176 | B178: 林翠萍 | C178: 榕江县 | D178: 小学 | E178: 科学 | F178: 001 | G178: 08 | H178: 05020200108 | I178: 54.5 | J178: 5 | K178: 第39候考室 | L178: 第39考场 | M178: 上午场 | N178: 10502143926 | O178: 81 | P178: 7 | Q178: 27.25 | R178: 40.5 | S178: 67.75 | T178: =IF(S178=0,"",SUMPRODUCT(($AB$3:$AB$196=AA178)*($T$3:$T$196>S178))+1) -> 5
A179: =IF(B179<>"",SUBTOTAL(3,$B$3:B179)+0,"") -> 177 | B179: 邰诗萱 | C179: 榕江县 | D179: 小学 | E179: 科学 | F179: 001 | G179: 19 | H179: 05020200119 | I179: 45 | J179: 7 | K179: 第39候考室 | L179: 第39考场 | M179: 上午场 | N179: 10502143928 | O179: 85.5 | P179: 4 | Q179: 22.5 | R179: 42.75 | S179: 65.25 | T179: =IF(S179=0,"",SUMPRODUCT(($AB$3:$AB$196=AA179)*($T$3:$T$196>S179))+1) -> 6
A180: =IF(B180<>"",SUBTOTAL(3,$B$3:B180)+0,"") -> 178 | B180: 杨涛 | C180: 榕江县 | D180: 小学 | E180: 科学 | F180: 001 | G180: 09 | H180: 05020200109 | I180: 45.5 | J180: 6 | K180: 第39候考室 | L180: 第39考场 | M180: 上午场 | N180: 10502143927 | O180: 84.33 | P180: 6 | Q180: 22.75 | R180: 42.17 | S180: 64.92 | T180: =IF(S180=0,"",SUMPRODUCT(($AB$3:$AB$196=AA180)*($T$3:$T$196>S180))+1) -> 7
A181: =IF(B181<>"",SUBTOTAL(3,$B$3:B181)+0,"") -> 179 | B181: 杨再明 | C181: 榕江县 | D181: 小学 | E181: 科学 | F181: 001 | G181: 16 | H181: 05020200116 | I181: 41 | J181: 8 | K181: 第39候考室 | L181: 第39考场 | M181: 上午场 | N181: 10502143929 | O181: 0 | Q181: 20.5 | R181: 0 | S181: 20.5 | T181: =IF(S181=0,"",SUMPRODUCT(($AB$3:$AB$196=AA181)*($T$3:$T$196>S181))+1) -> 8
A182: =IF(B182<>"",SUBTOTAL(3,$B$3:B182)+0,"") -> 180 | B182: 金秀兰 | C182: 榕江县 | D182: 小学 | E182: 科学 | F182: 001 | G182: 26 | H182: 05020200126 | I182: 41 | J182: 8 | K182: 第39候考室 | L182: 第39考场 | M182: 上午场 | N182: 10502143930 | O182: 0 | Q182: 20.5 | R182: 0 | S182: 20.5 | T182: =IF(S182=0,"",SUMPRODUCT(($AB$3:$AB$196=AA182)*($T$3:$T$196>S182))+1) -> 8
A183: =IF(B183<>"",SUBTOTAL(3,$B$3:B183)+0,"") -> 181 | B183: 陆东山 | C183: 榕江县 | D183: 初中 | E183: 数学 | F183: 003 | G183: 19 | H183: 05030200319 | I183: 75.5 | J183: 2 | K183: 第19候考室 | L183: 第19考场 | M183: 上午场 | N183: 10503021920 | O183: 84.67 | P183: 4 | Q183: 37.75 | R183: 42.34 | S183: 80.09 | T183: =IF(S183=0,"",SUMPRODUCT(($AB$3:$AB$196=AA183)*($T$3:$T$196>S183))+1) -> 1 | U183: 入围体检
A184: =IF(B184<>"",SUBTOTAL(3,$B$3:B184)+0,"") -> 182 | B184: 石吉昌 | C184: 榕江县 | D184: 初中 | E184: 数学 | F184: 003 | G184: 14 | H184: 05030200314 | I184: 79 | J184: 1 | K184: 第19候考室 | L184: 第19考场 | M184: 上午场 | N184: 10503021919 | O184: 79.33 | P184: 5 | Q184: 39.5 | R184: 39.67 | S184: 79.17 | T184: =IF(S184=0,"",SUMPRODUCT(($AB$3:$AB$196=AA184)*($T$3:$T$196>S184))+1) -> 2 | U184: 入围体检
A185: =IF(B185<>"",SUBTOTAL(3,$B$3:B185)+0,"") -> 183 | B185: 吴冬霞 | C185: 榕江县 | D185: 初中 | E185: 数学 | F185: 004 | G185: 11 | H185: 05030200411 | I185: 60 | J185: 3 | K185: 第19候考室 | L185: 第19考场 | M185: 上午场 | N185: 10503021921 | O185: 85 | P185: 2 | Q185: 30 | R185: 42.5 | S185: 72.5 | T185: =IF(S185=0,"",SUMPRODUCT(($AB$3:$AB$196=AA185)*($T$3:$T$196>S185))+1) -> 3 | U185: 入围体检
A186: =IF(B186<>"",SUBTOTAL(3,$B$3:B186)+0,"") -> 184 | B186: 吴义 | C186: 榕江县 | D186: 初中 | E186: 数学 | F186: 002 | G186: 24 | H186: 05030200224 | I186: 52 | J186: 4 | K186: 第19候考室 | L186: 第19考场 | M186: 上午场 | N186: 10503021922 | O186: 85.5 | P186: 1 | Q186: 26 | R186: 42.75 | S186: 68.75 | T186: =IF(S186=0,"",SUMPRODUCT(($AB$3:$AB$196=AA186)*($T$3:$T$196>S186))+1) -> 4 | U186: 入围体检
A187: =IF(B187<>"",SUBTOTAL(3,$B$3:B187)+0,"") -> 185 | B187: 余秀芝 | C187: 榕江县 | D187: 初中 | E187: 数学 | F187: 004 | G187: 17 | H187: 05030200417 | I187: 39.5 | J187: 5 | K187: 第19候考室 | L187: 第19考场 | M187: 上午场 | N187: 10503021923 | O187: 85 | P187: 2 | Q187: 19.75 | R187: 42.5 | S187: 62.25 | T187: =IF(S187=0,"",SUMPRODUCT(($AB$3:$AB$196=AA187)*($T$3:$T$196>S187))+1) -> 5
A188: =IF(B188<>"",SUBTOTAL(3,$B$3:B188)+0,"") -> 186 | B188: 李尧 | C188: 榕江县 | D188: 初中 | E188: 物理 | F188: 005 | G188: 09 | H188: 05030400509 | I188: 69 | J188: 1 | K188: 第25候考室 | L188: 第25考场 | M188: 上午场 | N188: 10503042512 | O188: 86.67 | P188: 1 | Q188: 34.5 | R188: 43.34 | S188: 77.84 | T188: =IF(S188=0,"",SUMPRODUCT(($AB$3:$AB$196=AA188)*($T$3:$T$196>S188))+1) -> 1 | U188: 入围体检
A189: =IF(B189<>"",SUBTOTAL(3,$B$3:B189)+0,"") -> 187 | B189: 潘新元 | C189: 榕江县 | D189: 初中 | E189: 物理 | F189: 005 | G189: 11 | H189: 05030400511 | I189: 64 | J189: 2 | K189: 第25候考室 | L189: 第25考场 | M189: 上午场 | N189: 10503042513 | O189: 77.67 | P189: 2 | Q189: 32 | R189: 38.84 | S189: 70.84 | T189: =IF(S189=0,"",SUMPRODUCT(($AB$3:$AB$196=AA189)*($T$3:$T$196>S189))+1) -> 2
A190: =IF(B190<>"",SUBTOTAL(3,$B$3:B190)+0,"") -> 188 | B190: 杨再伟 | C190: 榕江县 | D190: 初中 | E190: 物理 | F190: 005 | G190: 10 | H190: 05030400510 | I190: 47 | J190: 3 | K190: 第25候考室 | L190: 第25考场 | M190: 上午场 | N190: 10503042514 | O190: 0 | Q190: 23.5 | R190: 0 | S190: 23.5 | T190: =IF(S190=0,"",SUMPRODUCT(($AB$3:$AB$196=AA190)*($T$3:$T$196>S190))+1) -> 3
A191: =IF(B191<>"",SUBTOTAL(3,$B$3:B191)+0,"") -> 189 | B191: 王仕义 | C191: 榕江县 | D191: 初中 | E191: 政治 | F191: 025 | G191: 27 | H191: 05030902527 | I191: 72.5 | J191: 1 | K191: 第28候考室 | L191: 第28考场 | M191: 下午场 | N191: 20503092833 | O191: 90 | P191: 1 | Q191: 36.25 | R191: 45 | S191: 81.25 | T191: =IF(S191=0,"",SUMPRODUCT(($AB$3:$AB$196=AA191)*($T$3:$T$196>S191))+1) -> 1 | U191: 入围体检
A192: =IF(B192<>"",SUBTOTAL(3,$B$3:B192)+0,"") -> 190 | B192: 吴宁艳 | C192: 榕江县 | D192: 初中 | E192: 政治 | F192: 025 | G192: 23 | H192: 05030902523 | I192: 72 | J192: 2 | K192: 第28候考室 | L192: 第28考场 | M192: 下午场 | N192: 20503092834 | O192: 86.33 | P192: 2 | Q192: 36 | R192: 43.17 | S192: 79.17 | T192: =IF(S192=0,"",SUMPRODUCT(($AB$3:$AB$196=AA192)*($T$3:$T$196>S192))+1) -> 2
A193: =IF(B193<>"",SUBTOTAL(3,$B$3:B193)+0,"") -> 191 | B193: 李常娥 | C193: 榕江县 | D193: 初中 | E193: 政治 | F193: 025 | G193: 24 | H193: 05030902524 | I193: 67.5 | J193: 3 | K193: 第28候考室 | L193: 第28考场 | M193: 下午场 | N193: 20503092835 | O193: 80.33 | P193: 3 | Q193: 33.75 | R193: 40.17 | S193: 73.92 | T193: =IF(S193=0,"",SUMPRODUCT(($AB$3:$AB$196=AA193)*($T$3:$T$196>S193))+1) -> 3
A194: =IF(B194<>"",SUBTOTAL(3,$B$3:B194)+0,"") -> 192 | B194: 吴益默 | C194: 榕江县 | D194: 初中 | E194: 体育 | F194: 005 | G194: 04 | H194: 05031100504 | I194: 77 | J194: 1 | K194: 第32候考室 | L194: 第32考场 | M194: 上午场 | N194: 10503113207 | O194: 85 | P194: 1 | Q194: 38.5 | R194: 42.5 | S194: 81 | T194: =IF(S194=0,"",SUMPRODUCT(($AB$3:$AB$196=AA194)*($T$3:$T$196>S194))+1) -> 1 | U194: 入围体检
A195: =IF(B195<>"",SUBTOTAL(3,$B$3:B195)+0,"") -> 193 | B195: 杨森 | C195: 榕江县 | D195: 初中 | E195: 体育 | F195: 005 | G195: 01 | H195: 05031100501 | I195: 52 | J195: 2 | K195: 第32候考室 | L195: 第32考场 | M195: 上午场 | N195: 10503113208 | O195: 80 | P195: 2 | Q195: =ROUND(I195*0.5,2) -> 26 | R195: =ROUND(O195*0.5,2) -> 40 | S195: =Q195+R195 -> 66 | T195: =IF(S195=0,"",SUMPRODUCT(($AB$3:$AB$196=AA195)*($T$3:$T$196>S195))+1) -> 2
A196: =IF(B196<>"",SUBTOTAL(3,$B$3:B196)+0,"") -> 194 | B196: 龙启坤 | C196: 榕江县 | D196: 初中 | E196: 体育 | F196: 005 | G196: 05 | H196: 05031100505 | I196: 51 | J196: 3 | K196: 第32候考室 | L196: 第32考场 | M196: 上午场 | N196: 10503113209 | O196: 0 | Q196: =ROUND(I196*0.5,2) -> 25.5 | R196: =ROUND(O196*0.5,2) -> 0 | S196: =Q196+R196 -> 25.5 | T196: =IF(S196=0,"",SUMPRODUCT(($AB$3:$AB$196=AA196)*($T$3:$T$196>S196))+1) -> 3
